Cogmind - Beta 13 @@@ ROGUE MODE // 2024.04.27 @ 01:52:57 Player: CrossedViper Result: Destroyed by P-80 Master with Gamma Rifle Performance ------------- Evolutions (9) 4500 Regions Visited (32) 6400 Robots Destroyed (605) 3025 Value Destroyed (32968) 32968 Prototype IDs (124) 2480 Alien Tech Used (1) 200 Bonus (20025) 20025 TOTAL SCORE: 69598 Bonus ------- Triggered High Security 500 High Alert Combat Kills 9627 Follower Combat Kills 1100 Entered Garrisons 400 Network Hubs Disabled 400 Aligned with FarCom 300 Destroyed Z-Imprinter 1000 Triggered Deep Caves Wall 500 Exposed GOLEM Chamber 500 Acquired ECA 300 Met Warlord at Base 500 MAIN.C Attacked Warlord 500 Met R17 at Cetus 500 Met R17 at Research 2000 Met Warlord at Research 2000 Scanned by Researcher 500 Destroyed MAIN.C Guards 500 Friendly Fire -1102 Cogmind --------- Core Integrity 0/1600 Matter 54/300 Energy 100/100 System Corruption 45% Temperature Cool (0) Movement Core (1600) Ox31 Location -1/Command Parts ------- > --- POWER (3) -------- (None) > --- PROPULSION (6) --- (None) > --- UTILITY (12) ----- Huge Storage Unit > --- WEAPON (4) ------- Assembled Focal Cannon > --- INVENTORY (25) --- Light Quantum Reactor Armored Heavy Treads Experimental Energy Well (600) Experimental Energy Well (600) Hacking Drone Bay (1/1) Heavy Laser Multirail Linear Accelerator Linear Accelerator Perforator Hellfire Missile Launcher Containment Facilitator Improved Plasma Cutter Peak State ------------ > --- POWER ------------ Reinforced Quantum Reactor Improved Quantum Reactor Improved Quantum Reactor > --- PROPULSION ------- Armored Heavy Treads Armored Heavy Treads Armored Heavy Treads > --- UTILITY ---------- Experimental Power Amplifier 2N-1CE's Frost Array Huge Storage Unit Assembled Combat Suite Quantum Capacitor SHELL Armor Experimental Focal Shield Thermal Barrier Experimental Hardlight Generator > --- WEAPON ----------- Cooled Nova Cannon Multirail Multirail Linear Accelerator > --- INVENTORY -------- Vortex Chain Reactor Armored Heavy Treads Centrium Heavy Treads Centrium Heavy Treads Experimental Energy Well Experimental Energy Well Advanced Weapon Cycler Heavy Regenerative Plating Point Defense Array Antimissile System Hacking Drone Bay GOLEM Unit Linear Accelerator Linear Accelerator Perforator Hellfire Missile Launcher Hellfire Missile Launcher Improved Plasma Cutter [Rating: 248] Favorites ----------- Power Assembled Flux Generator Engine Light Ion Engine Power Core Enhanced Nuclear Core Reactor Assembled Flux Generator Propulsion Light Treads Treads Light Treads Leg Assembled Alloy Leg Wheel Armored Huge Wheel Utility Experimental Targeting Computer Device Advanced Weapon Cycler Storage High-capacity Storage Unit Processor Experimental Targeting Computer Hackware System Shield Protection Centrium Medium Armor Plating Weapon Assembled Focal Cannon Energy Gun Vortex Rifle Energy Cannon Assembled Focal Cannon Ballistic Gun 8R-AWN's Boregun Ballistic Cannon Linear Accelerator Launcher Hellfire Missile Launcher Special Weapon Improved Plasma Cutter Impact Weapon Heavy Flail Slashing Weapon Mining Claw Build | -11 -10 -9 -9 -9 -8 -8 -8 -8 -8 -7 -7 -6 -6 -6 -6 -6 -5 -5 -5 -5 -5 -5 -4 -4 -4 -4 -3 -3 -3 -2 -1 -1 ------- Run | Yrd Mat Mat Min Exi Min Mat Gar Mat Gar Fac Sto Fac Low Low Zio Dee Pro Fac Ext Cet Arc Hub Fac Upp Upp War Pro Res Tes Res Acc Com Slots Evolved 18 | . . 2 . . . 2 . . . 2 . 2 . . . . . 2 . . . . 2 . . . . 2 . 2 2 . Power 2 | . . . . . . . . . . . . 1 . . . . . . . . . . . . . . . 1 . . . . Propulsion 4 | . . 2 . . . . . . . . . . . . . . . . . . . . . . . . . . . 2 . . Utility 10 | . . . . . . 2 . . . 2 . 1 . . . . . 2 . . . . 2 . . . . 1 . . . . Weapon 2 | . . . . . . . . . . . . . . . . . . . . . . . . . . . . . . . 2 . Parts Attached 576 | 7 12 16 2 10 5 23 9 10 17 28 7 15 9 1 33 34 4 31 31 19 8 24 34 4 . 9 5 8 66 13 31 51 Power 39 | 1 1 1 . 1 . 2 1 1 2 2 . 4 2 . 2 1 . . 2 2 1 1 . . . . . 1 6 . 1 4 Engine 12 | 1 1 1 . . . . 1 1 2 . . 4 1 . . . . . . . . . . . . . . . . . . . Core 9 | . . . . 1 . 2 . . . 2 . . 1 . 1 . . . 1 . . 1 . . . . . . . . . . Reactor 18 | . . . . . . . . . . . . . . . 1 1 . . 1 2 1 . . . . . . 1 6 . 1 4 Propulsion 95 | 2 4 4 1 4 5 8 3 4 8 8 3 3 1 . 2 2 . 3 6 2 . 1 2 . . . . 2 5 1 5 6 Treads 81 | 2 4 4 1 3 . 8 3 4 8 8 3 2 1 . 2 2 . 2 1 2 . 1 2 . . . . 2 4 1 5 6 Leg 13 | . . . . 1 5 . . . . . . . . . . . . 1 5 . . . . . . . . . 1 . . . Wheel 1 | . . . . . . . . . . . . 1 . . . . . . . . . . . . . . . . . . . . Hover . | . . . . . . . . . . . . . . . . . . . . . . . . . . . . . . . . . Flight . | . . . . . . . . . . . . . . . . . . . . . . . . . . . . . . . . . Utility 286 | 2 2 1 1 2 . 7 . 1 2 9 1 3 1 1 17 20 1 28 16 10 5 16 30 4 . 4 5 5 40 10 17 25 Device 193 | 1 . . 1 . . 5 . 1 1 2 . 2 1 1 7 14 1 25 13 2 4 7 19 3 . 3 3 3 31 6 16 21 Storage 9 | 1 2 . . 1 . 1 . . . . . . . . 1 . . 1 . . . . . . . . . . . 1 1 . Processor 16 | . . 1 . 1 . . . . . 2 . 1 . . 3 . . 2 . . . . 1 . . . . 2 . 3 . . Hackware 3 | . . . . . . 1 . . . 1 . . . . . . . . . . . 1 . . . . . . . . . . Protection 65 | . . . . . . . . . 1 4 1 . . . 6 6 . . 3 8 1 8 10 1 . 1 2 . 9 . . 4 Artifact . | . . . . . . . . . . . . . . . . . . . . . . . . . . . . . . . . . Weapon 156 | 2 5 10 . 3 . 6 5 4 5 9 3 5 5 . 12 11 3 . 7 5 2 6 2 . . 5 . . 15 2 8 16 Energy Gun 13 | 1 . . . . . . . . . . . . . . . 1 . . 1 1 1 . . . . 4 . . 1 . 2 1 Energy Cannon 54 | . . 1 . 1 . 2 3 1 2 7 1 4 3 . 4 5 . . 2 . . 3 . . . . . . 8 1 3 3 Ballistic Gun 45 | 1 3 7 . 2 . 4 . 1 2 . 1 . . . 4 4 1 . 3 4 1 3 1 . . . . . 1 . . 2 Ballistic Cannon 12 | . . . . . . . . . . . 1 . . . . . . . . . . . . . . . . . 2 1 2 6 Launcher 26 | . 1 2 . . . . 2 . 1 2 . 1 2 . 3 1 2 . 1 . . . 1 . . . . . 2 . 1 4 Special Weapon 3 | . . . . . . . . . . . . . . . 1 . . . . . . . . . . 1 . . 1 . . . Impact Weapon 2 | . . . . . . . . 2 . . . . . . . . . . . . . . . . . . . . . . . . Slashing Weapon 1 | . 1 . . . . . . . . . . . . . . . . . . . . . . . . . . . . . . . Piercing Weapon . | . . . . . . . . . . . . . . . . . . . . . . . . . . . . . . . . . Special Melee Weapon . | . . . . . . . . . . . . . . . . . . . . . . . . . . . . . . . . . Unidentified Prototypes 63 | . . 1 . 1 . 4 . 1 . 2 2 2 . . 9 7 1 . . 4 . 3 . . . 4 . . 18 1 . 3 Corrupted Parts 5 | . . . . . . . . . . . . . . . . . . . . 2 1 . . . . . . . 2 . . . System Corruption 24 | . . . . . . . . . . . . . . . . . . . . 11 9 . . . . . . . 4 . . . Parts Lost 67 | . 4 1 . 5 1 4 6 1 1 1 1 . 4 . 1 3 . . 5 2 . 2 . . . . . . 1 . 1 23 Power 11 | . 1 1 . 1 . 2 1 . . . . . 2 . . . . . . . . 1 . . . . . . . . . 2 Propulsion 21 | . 2 . . 4 1 2 4 . . . . . . . . 2 . . 1 . . . . . . . . . . . . 5 Utility 23 | . 1 . . . . . . 1 . . 1 . 1 . 1 1 . . 2 1 . 1 . . . . . . . . 1 12 Weapon 12 | . . . . . . . 1 . 1 1 . . 1 . . . . . 2 1 . . . . . . . . 1 . . 4 Highest Loss Streak 15 | . 2 1 . 2 1 2 2 1 1 1 1 . 2 . 1 1 . . 2 2 . 1 . . . . . . 1 . 1 15 To Critical Strikes 3 | . . . . 3 . . . . . . . . . . . . . . . . . . . . . . . . . . . . Average Slot Usage (%) 87 | . 93 94 100 97 98 91 97 98 97 89 100 92 86 86 86 93 91 93 93 89 87 87 77 77 78 77 78 83 80 69 72 75 Engine 2 | . 13 9 11 8 . . 5 9 9 . . 8 3 . . . . . . . . . . . . . . . . . . . Core 1 | . . . . . 11 8 3 . . 6 7 2 3 6 6 2 . . . 1 . . . . . . . . . . . . Reactor 4 | . . . . . . . . . . . . . . . . 5 6 5 5 9 11 10 5 5 5 5 5 9 9 13 12 11 Treads 18 | . 28 44 44 43 6 32 34 34 35 30 30 16 13 13 13 19 13 9 1 8 11 11 10 10 10 10 10 9 8 13 12 11 Leg 2 | . . . . . 36 2 . . . . . . . . . 5 13 12 21 6 . . . . . . . . . . . . Device 16 | . 8 . 2 9 . 6 9 8 7 7 7 16 19 20 14 15 19 20 12 11 14 15 25 25 26 26 27 22 24 24 24 27 Storage 8 | . 14 11 11 11 11 8 9 9 9 7 7 6 6 6 6 9 13 11 11 7 5 5 10 10 10 10 10 9 8 4 4 4 Processor 10 | . . 7 8 1 11 9 9 9 7 9 15 16 20 20 20 14 13 18 23 18 17 17 5 5 5 5 5 7 7 5 4 1 Protection 5 | . . . . . . . . . 1 9 15 6 . . 4 4 . . 3 13 13 11 9 9 10 9 8 14 10 4 4 3 Energy Cannon 6 | . . . . 1 . 8 8 8 9 7 15 12 12 13 6 10 11 5 4 1 . . 7 10 10 2 6 9 6 3 5 5 Ballistic Gun 5 | . 22 21 22 20 22 9 9 9 8 6 . . . . 6 2 . 5 5 8 10 6 2 . . . . . . . . 3 Naked Turns . | . . . . . . . . . . . . . . . . . . . . . . . . . . . . . . . . . Heaviest Build 248 | 14 29 29 30 67 67 68 57 56 88 92 91 105 104 68 110 113 113 149 158 164 164 167 173 173 173 167 181 221 214 217 248 245 Greatest Support 245 | 40 46 92 89 86 90 90 86 84 110 110 92 82 28 28 98 116 60 80 100 160 160 160 180 160 160 160 160 160 145 225 225 245 Greatest Overweight (x) 32 | . . . . 1 1 1 . . . 1 1 3 3 2 3 1 1 1 2 1 1 1 1 1 1 1 1 1 3 . 1 32 Average Overweight (x) . | . . . . . . . . . . . . 2 2 2 1 . 1 1 1 . . . . 1 1 . 1 1 1 . . 1 Largest Inventory Capacity 25 | 8 15 15 15 20 20 20 20 20 20 20 20 20 20 20 20 20 20 25 25 25 25 25 25 25 25 25 25 25 25 25 25 25 Average Capacity 21 | 7 11 15 15 18 20 19 20 20 20 20 20 20 20 20 20 20 20 20 25 25 25 25 25 25 25 25 25 25 25 25 25 25 Most Carried 25 | 4 10 15 15 20 20 20 20 20 20 20 20 20 20 20 20 20 20 20 25 25 25 25 25 24 25 25 25 25 25 25 25 25 Average Carried 20 | 2 8 9 14 15 18 18 18 19 19 19 19 19 19 19 19 19 19 19 21 24 25 24 24 23 24 24 24 24 24 24 24 23 Final Capacity 25 | 8 15 15 15 20 20 20 20 20 20 20 20 20 20 20 20 20 20 25 25 25 25 25 25 25 25 25 25 25 25 25 25 25 Final Carried 25 | 3 8 15 15 19 19 18 20 19 20 20 20 20 20 20 20 20 19 20 25 25 25 25 24 24 25 25 24 24 25 24 24 15 Class Distribution -------------------- 53% | Scavenger-Mutant 16% | Mutant 16% | Scavenger-Golem 4% | Scavenger-Tank 4% | Skirmisher Dominant Class ---------------- Mutant | -10/Materials Mutant | -9/Materials Mutant | -9/Mines Mutant | -9/Exiles Scavenger-Mutant | -8/Mines Mutant | -8/Materials Scavenger-Mutant | -8/Garrison Scavenger-Mutant | -8/Materials Scavenger-Mutant | -8/Garrison Scavenger-Mutant | -7/Factory Scavenger-Mutant | -7/Storage Scavenger-Mutant | -6/Factory Scavenger-Mutant | -6/Lower Caves Skirmisher | -6/Lower Caves Scavenger-Mutant | -6/Zion Scavenger-Mutant | -6/Deep Caves Scavenger-Mutant | -5/Proximity Caves Scavenger-Mutant | -5/Factory Scavenger-Mutant | -5/Extension Scavenger-Mutant | -5/Cetus Scavenger-Mutant | -5/Archives Scavenger-Mutant | -5/Hub_04(d) Scavenger-Golem | -4/Factory Scavenger-Golem | -4/Upper Caves Scavenger-Golem | -4/Upper Caves Scavenger-Golem | -4/Warlord Scavenger-Golem | -3/Proximity Caves Scavenger-Mutant | -3/Research Scavenger-Mutant | -3/Testing Scavenger-Mutant | -2/Research Scavenger-Gunner | -1/Access Scavenger-Tank | -1/Command Resources | -11 -10 -9 -9 -9 -8 -8 -8 -8 -8 -7 -7 -6 -6 -6 -6 -6 -5 -5 -5 -5 -5 -5 -4 -4 -4 -4 -3 -3 -3 -2 -1 -1 ----------- Run | Yrd Mat Mat Min Exi Min Mat Gar Mat Gar Fac Sto Fac Low Low Zio Dee Pro Fac Ext Cet Arc Hub Fac Upp Upp War Pro Res Tes Res Acc Com Matter Collected 12643 | 366 283 718 42 120 486 635 409 298 373 421 303 174 142 97 501 474 155 373 827 465 458 879 532 96 7 90 . 120 817 330 447 1205 Remotely 166 | . . . . . . 166 . . . . . . . . . . . . . . . . . . . . . . . . . . Salvage Created 35303 | 304 574 762 35 120 641 1388 1001 854 528 625 646 972 274 230 415 857 507 851 2193 679 682 1461 2809 215 264 67 134 319 3112 1702 3306 6776 Parts 1625 | 28 30 46 3 11 30 75 52 35 29 36 23 44 13 8 20 37 11 37 100 42 37 65 124 9 10 1 16 9 168 69 162 245 Haulers Intercepted 22 | . 1 2 . . . 1 . 1 . . 3 1 . . . . . . . . . 2 4 . . . . 1 2 1 3 . Recyclers Shooed 12 | 1 4 . . . . 1 . 1 . . 1 . . . . . . . 2 . . . 1 . . . . . . . . 1 Parts Field Recycled . | . . . . . . . . . . . . . . . . . . . . . . . . . . . . . . . . . Retrieved Matter . | . . . . . . . . . . . . . . . . . . . . . . . . . . . . . . . . . Parts Self-Destructed 62 | . . . . . . . . . . . . . 11 8 . . 8 . . . . . . 9 10 . 16 . . . . . Prevented . | . . . . . . . . . . . . . . . . . . . . . . . . . . . . . . . . . Kills | -11 -10 -9 -9 -9 -8 -8 -8 -8 -8 -7 -7 -6 -6 -6 -6 -6 -5 -5 -5 -5 -5 -5 -4 -4 -4 -4 -3 -3 -3 -2 -1 -1 ------- Run | Yrd Mat Mat Min Exi Min Mat Gar Mat Gar Fac Sto Fac Low Low Zio Dee Pro Fac Ext Cet Arc Hub Fac Upp Upp War Pro Res Tes Res Acc Com Combat Hostiles Destroyed 513 | . 13 15 . 1 8 28 21 12 10 14 6 21 13 4 2 11 15 12 25 8 4 14 36 3 4 1 7 3 35 19 39 109 Melee 3 | . . 1 . . . 1 . . . . . . . . . . . . . . . . . . . . . . . . . 1 Guns 118 | . 11 13 . 1 8 14 7 3 1 . . . . . 1 3 . 2 9 5 4 14 4 . . . 6 . 3 . 1 8 Cannons 282 | . . . . . . 13 13 7 6 9 5 16 3 4 1 4 8 9 11 . . . 29 3 4 1 1 2 28 17 27 61 AOE 76 | . 2 1 . . . . . . 3 5 . 5 9 . . . 7 1 4 . . . 3 . . . . . 1 . 3 32 Classes Destroyed 33 | 3 5 3 . . 2 2 1 . 1 1 . . . . 2 4 . . . . . 1 . . . . 1 . 2 3 1 1 Worker 10 | 2 . 1 . . . . . . . . . 1 . . . . . 1 . . . 4 . . . . . . . . . 1 Builder 8 | . . . . . . 1 . 1 . . . 1 . . . . . . . . . 2 . . . . . . 2 . 1 . Tunneler 9 | 8 . . . . . 1 . . . . . . . . . . . . . . . . . . . . . . . . . . Hauler 22 | . 1 2 . . . 1 . 1 . . 3 1 . . . . . . . . . 2 4 . . . . 1 2 1 3 . Recycler 19 | 1 2 1 1 . 2 1 . 2 . 1 1 1 . . . . . . 2 . . . 1 . . . . . 1 . . 2 Mechanic 4 | . . . . . . 1 . . . 1 . . . . . . . . . . . . 1 . . . . . . . . 1 Operator 10 | . . 1 . . . . . . . . . . . . . . . . . . 7 . . . . . . . 1 . 1 . Drone 3 | . . . . . . . . . . . . . . . . . . . . . . . . . . . 2 . 1 . . . Watcher 35 | . 1 2 . . . 2 . . . 2 . 1 . . . . . . 3 2 . 3 4 . . . . . 3 1 8 3 Swarmer 75 | . 3 4 . . . 10 7 . . . . 12 10 . . . 2 . 4 . . . 5 . . . 5 . . 1 2 10 Saboteur 1 | . . . . . . . . . . . . . . . . . . . . . . . . . . . . . . . . 1 Grunt 185 | . 7 6 . . 5 11 7 7 5 6 3 3 2 2 . . 8 5 8 . . 7 12 2 . . . 2 12 8 6 51 Brawler 18 | . . . . . 1 . . 1 . . . . . 1 . . 2 . 3 . . . 1 . . . . . 1 . . 8 Duelist 14 | . . 1 . . . 1 . 1 . 2 . . . . . . 2 . . . . . . 1 . 1 . . . . . 5 Protector 8 | . . . . . . . . . . 1 . . . . . . . . . . . . . . . . . . . . . 7 Researcher 3 | . . . . . . . . . . . . . . . . . . . . . . . . . . . . . 3 . . . Sentry 49 | . . 4 . . . 6 5 3 4 1 3 2 1 . . . 1 . 6 . 4 3 1 . . . . 1 . . 1 3 Demolisher 4 | . . . . . . . . . . . . . . . . . . . . . . . . . . . . . . 3 1 . Specialist 6 | . . . . . . . . . . . . . . . . . . . . . . . . . . . . . 6 . . . Hunter 29 | . . . . . 2 . 1 . . 2 1 1 . . . . . 4 1 . . 1 4 . 2 . . . 1 2 4 3 Programmer 64 | . . . . . . . 1 . . 2 . 3 . 1 . . . 3 . . . 2 13 . 2 . . . 13 . 13 11 Heavy 2 | . . . . . . . . . . . . . . . . . . . . . . 1 . . . . . . . . 1 . Behemoth 9 | . . . . . . . . . 1 . . . . . . . . . 2 . . . . . . . . . . 1 3 2 Cetus Guard 8 | . . . . . . . . . . . . . . . . . . . . 8 . . . . . . . . . . . . M Guard 2 | . . . . . . . . . . . . . . . . . . . . . . . . . . . . . . . . 2 Combat Programmer 2 | . . . . . . . . . . . . . . . . . . . . . . . . . . . . . . . . 2 Investigator 1 | . . . . . . . . . . . . . . . . . . . . . . . . . . . . . . . . 1 Striker 3 | . . . . . . . . . . . . . . . . . . . . . . . . . . . . . . 2 . 1 Executioner 5 | . . . . . . . . . . . . . . . . . . . . . . . . . . . . . . 2 . 3 Protovariant Y 1 | . . . . . . . . . . . . . . . . . . . . . . . . . . . . . 1 . . . Subdweller 3 | . 3 . . . . . . . . . . . . . . . . . . . . . . . . . . . . . . . Zionite 10 | . . . . . . . . . . . . . . . 10 . . . . . . . . . . . . . . . . . Z-Light 5 | . . . . . . . . . . . . . . . . 5 . . . . . . . . . . . . . . . . Assembler 2 | . . . . . . . . . . . . . . . . 2 . . . . . . . . . . . . . . . . Assembled 10 | . . . . . . . . . . . . . . . . 3 . . . . . . . . . . . . . . 7 . Golem 3 | . . . . . . . . . . . . . . . . 3 . . . . . . . . . . . . . . . . Thug 1 | . . . . . . . . . . . . . . . . . . . 1 . . . . . . . . . . . . . Savage 1 | . . . . . . . . . . . . . . . . . . . 1 . . . . . . . . . . . . . Fireman 1 | . . . . . . . . . . . . . . . . . . . . . . . . . . . . . . . 1 . Mutant 1 | . . . . . . . . . . . . . . . 1 . . . . . . . . . . . . . . . . . Best Kill Streak 19 | 5 3 5 1 1 3 7 4 5 3 5 3 5 7 3 2 3 11 5 7 3 3 3 8 3 2 1 5 3 6 6 10 19 Combat Bots Only 18 | . 3 5 . 1 3 7 4 3 3 5 3 4 7 3 1 3 11 5 7 3 3 3 7 3 2 1 5 2 4 6 10 18 Max Kills in Single Turn 6 | 1 1 1 1 1 1 2 1 1 2 1 1 4 2 1 1 1 2 1 4 1 1 3 3 1 1 1 1 1 2 1 3 6 Gunslinging . | . . . . . . . . . . . . . . . . . . . . . . . . . . . . . . . . . Exploded 6 | . 1 1 . . . . . . 2 1 . 3 2 . . . 2 1 4 . . . 2 . . . . . 1 . 3 6 Melee 1 | . . 1 . . . 1 . . . . . . . . . . . . . . . . . . . . . . . . . 1 Uniques/NPCs Destroyed 3 | . . . . 1 . . . . . . . . . . 1 1 . . . . . . . . . . . . . . . . 8R-AWN (-9/Exiles) 7V-RTL (-6/Zion) Z-Imprinter (-6/Deep Caves) Combat | -11 -10 -9 -9 -9 -8 -8 -8 -8 -8 -7 -7 -6 -6 -6 -6 -6 -5 -5 -5 -5 -5 -5 -4 -4 -4 -4 -3 -3 -3 -2 -1 -1 -------- Run | Yrd Mat Mat Min Exi Min Mat Gar Mat Gar Fac Sto Fac Low Low Zio Dee Pro Fac Ext Cet Arc Hub Fac Upp Upp War Pro Res Tes Res Acc Com Hostile Shots Fired 3730 | . 80 90 . 74 41 149 110 38 88 96 106 102 76 9 39 41 45 50 97 54 8 99 231 10 24 19 23 18 193 113 301 1306 Missed 1197 | . 26 33 . 20 9 45 27 14 32 33 43 29 29 3 9 7 15 17 39 10 2 29 77 3 11 9 5 5 56 47 105 408 Intercepted 45 | . . . . . . . . . . . . . . . . . . . . . . . . . . . . . . 2 7 36 Damage Taken 39244 | . 742 706 . 945 516 1325 1183 384 392 1198 454 953 689 115 754 1125 728 484 1282 1135 147 2182 2467 109 196 153 277 232 2505 704 2079 13083 Core 3722 | . 141 42 . 74 118 131 214 20 26 103 19 60 107 19 51 167 58 49 85 114 27 131 172 . 15 3 16 8 143 3 83 1523 Absorbed by Shields 7559 | . . . . . . . . . 35 . . . . . . . . 177 121 . . . . . . . . 25 508 479 1413 4801 Reduced by Siege Mode 787 | . . . . . . . . . . . . . . . . . . . . 21 . 64 92 9 10 . 12 . 81 . 17 481 Redirected to Shielding 153 | . . . . . . . . . . . . . . . . . . . . 153 . . . . . . . . . . . . Ignored by Resistances 8643 | . . . . . . . . . . 39 126 220 18 . . . . . . . . . 524 24 40 70 130 69 664 342 1095 5282 Regen/Repaired (Parts) 5185 | . . 135 . . . 383 . 16 . 70 . . . . 191 . . 70 . . . . 1637 . . 450 . . . 331 810 1092 Core Remaining (%) 66 | 100 43 . . . 41 . . . 28 . 82 . . . . . 45 . . . . 59 . . . . 82 . 88 99 . . Volleys Fired 2224 | 32 50 71 1 35 44 103 79 34 59 55 35 47 27 10 48 64 34 60 84 58 47 96 105 34 13 17 11 11 191 95 178 396 Largest 4 | 2 2 2 2 2 2 2 2 2 2 2 2 2 2 2 2 2 2 2 2 2 2 2 2 2 2 1 2 2 2 1 4 4 Hottest 302 | 60 60 50 46 91 46 96 96 96 136 166 166 166 125 120 125 125 64 55 81 81 65 110 70 50 50 40 65 50 150 100 302 236 Shots Fired 3383 | 63 94 137 2 70 88 204 155 68 114 89 70 91 43 21 90 101 47 71 150 74 68 168 166 65 25 17 22 22 221 95 217 455 Gun 1299 | 63 88 133 2 53 88 114 77 34 54 32 . . . . 22 25 . 13 87 42 68 168 29 . . 8 11 . 25 . 37 26 Cannon 2014 | . . . . 17 . 90 77 34 58 45 70 90 32 21 65 76 36 58 62 32 . . 135 65 25 9 11 22 196 95 179 414 Launcher 70 | . 6 4 . . . . 1 . 2 12 . 1 11 . 3 . 11 . 1 . . . 2 . . . . . . . 1 15 Special . | . . . . . . . . . . . . . . . . . . . . . . . . . . . . . . . . . Kinetic 1170 | 32 78 133 2 53 88 114 77 34 54 32 . . . . 22 24 . 13 87 42 68 124 29 . . . . . 1 5 13 45 Thermal 1955 | 31 10 . . 17 . 90 77 34 58 32 70 90 32 21 65 59 36 58 55 . . 44 135 65 25 9 11 22 158 90 166 395 Explosive 70 | . 6 4 . . . . 1 . 2 12 . 1 11 . 3 . 11 . 1 . . . 2 . . . . . . . 1 15 Electromagnetic 144 | . . . . . . . . . . 13 . . . . . 18 . . 7 32 . . . . . . . . 37 . 37 . Entropic 44 | . . . . . . . . . . . . . . . . . . . . . . . . . . 8 11 . 25 . . . Robot Hit Streak 57 | 9 7 20 . 7 15 11 15 8 10 13 24 13 7 6 51 23 11 33 32 13 30 18 41 17 7 4 5 22 41 22 22 57 Robot Miss Streak 6 | 4 3 4 . 3 3 5 6 3 3 3 4 3 3 2 1 4 1 1 3 1 1 2 1 . 1 . 2 . 3 4 4 4 Penetration Max 2 | . . . . . . 1 1 . . . . . . . 1 1 . . 2 1 1 2 . . . . . . . . . 2 Secondary Targets 9 | . 2 . . . 1 1 . . . . . . . . . . . . . 2 . 1 . . . . . . . . . 2 Max Gunslinging Chain 1 | . 1 . . . 1 1 . . . . . . . . . . . . . 1 . 1 . . . . . . . . . 1 Capacitor 655 | . . . . . . . . . . . . . . . . . . . . . . . . . . . . . 155 90 149 261 Shots Hit Robots 2288 | 33 60 87 . 52 66 132 65 46 49 52 46 48 25 13 73 56 34 49 106 45 54 128 134 12 20 1 11 19 172 76 155 369 Core Hits 1231 | 12 31 34 1 14 25 56 34 21 27 34 17 36 19 7 32 25 34 18 60 16 23 43 85 6 5 . 7 6 73 42 76 312 Critical Kills 71 | . . 1 . . . 2 3 2 . . 2 . . . 2 3 . 2 7 5 8 8 3 . . . . . 1 5 5 12 Critical Parts Destroyed 86 | 1 . . . . 2 1 . . . . . . . . 6 2 . 4 20 4 16 17 5 . . . . . . 3 . 5 Critical Strikes 175 | 1 . 1 . 2 2 3 3 2 . . 2 . . . 9 6 . 6 31 12 26 27 8 . . . . . 3 8 6 17 Meltdown 19 | . . . . . . . 1 2 . . 2 . . . 1 . . . . . . . . . . . . . . 2 5 6 Destroy 153 | 1 . 1 . 2 2 3 2 . . . . . . . 8 6 . 6 31 12 26 27 8 . . . . . 1 6 . 11 Corrupt 3 | . . . . . . . . . . . . . . . . . . . . . . . . . . . . . 2 . 1 . Melee Attacks 16 | . 9 . . . . . . 7 . . . . . . . . . . . . . . . . . . . . . . . . Impact 7 | . . . . . . . . 7 . . . . . . . . . . . . . . . . . . . . . . . . Slashing 9 | . 9 . . . . . . . . . . . . . . . . . . . . . . . . . . . . . . . Piercing . | . . . . . . . . . . . . . . . . . . . . . . . . . . . . . . . . . Sneak Attacks 1 | . . . . . . . . 1 . . . . . . . . . . . . . . . . . . . . . . . . Combat Hostiles . | . . . . . . . . . . . . . . . . . . . . . . . . . . . . . . . . . Follow-up Attacks . | . . . . . . . . . . . . . . . . . . . . . . . . . . . . . . . . . Damage Inflicted 92586 | 425 1178 1403 13 891 970 2639 1532 1022 1299 2565 1282 2342 1625 448 2188 1671 2688 1899 3957 1169 1298 3995 6586 514 1014 37 519 875 7430 3223 6807 27082 Guns 18619 | 425 700 1300 . 624 959 1334 643 350 398 431 . . . . 297 338 . 128 1424 759 1298 3621 760 . . . 369 . 602 . 897 962 Cannons 54351 | . . . . 267 . 1296 889 489 488 807 1278 1730 790 448 1831 1333 1099 1771 2228 410 . . 5229 514 1014 37 150 875 6565 3223 5623 13967 Explosions 19130 | . 429 78 . . . . . . 413 1318 . 574 835 . 60 . 1589 . 305 . . 321 597 . . . . . 245 . 228 12138 Melee 208 | . 25 . . . . . . 183 . . . . . . . . . . . . . . . . . . . . . . . . Ramming 278 | . 24 25 13 . 11 9 . . . 9 4 38 . . . . . . . . . 53 . . . . . . 18 . 59 15 Kinetic 16209 | 236 619 1300 . 624 959 1334 643 350 398 431 . . . . 297 309 . 128 1424 759 1298 2658 760 . . . . . 7 36 223 1416 Thermal 52776 | 189 81 . . 267 . 1296 889 489 488 563 1278 1730 790 448 1831 984 1099 1771 2110 . . 963 5229 514 1014 37 150 875 5591 3187 5400 13513 Explosive 18461 | . 427 78 . . . . . . 413 1318 . 574 835 . 60 . 1589 . 305 . . . 496 . . . . . . . 228 12138 Electromagnetic 3683 | . 2 . . . . . . . . 244 . . . . . 378 . . 118 410 . 321 101 . . . . . 1212 . 897 . Impact 183 | . . . . . . . . 183 . . . . . . . . . . . . . . . . . . . . . . . . Slashing 25 | . 25 . . . . . . . . . . . . . . . . . . . . . . . . . . . . . . . Piercing . | . . . . . . . . . . . . . . . . . . . . . . . . . . . . . . . . . Entropic 971 | . . . . . . . . . . . . . . . . . . . . . . . . . . . 369 . 602 . . . Highest Corruption 45 | . . . . . . . 4 4 4 . 2 1 1 1 1 . . 1 1 12 12 13 2 2 3 3 . . 18 . 12 45 Average Corruption 5 | . . . . . . . 3 4 4 . 2 1 1 1 1 . . 1 1 8 7 4 1 2 2 3 . . 11 . 5 17 Corruption Purged 39 | . . . . . . . . . . . . . . . . . . . . . 21 . . . . . . . 18 . . . Corruption Blocked 31 | . . . . . . . . . . . . . . . . . . . . . . . . . . . . . 30 1 . . Effects 438 | . . . . . . . 17 16 28 . 6 . 6 2 . . . 1 17 19 15 29 21 25 8 . . . 76 . 33 119 Message Errors 84 | . . . . . . . 2 5 7 . 2 . 1 . . . . . 3 2 2 7 10 3 2 . . . 8 . 8 22 Matter Fused 106 | . . . . . . . 5 6 8 . 4 . 2 . . . . 1 2 3 4 8 3 8 . . . . 16 . 6 30 Heat Flow Errors 53 | . . . . . . . 1 2 3 . . . 2 1 . . . . 2 2 2 3 2 5 . . . . 17 . 5 6 Energy Discharges 53 | . . . . . . . 4 1 4 . . . . . . . . . 3 5 4 3 1 2 3 . . . 11 . 3 9 Parts Rejected 10 | . . . . . . . . 1 . . . . 1 . . . . . . 1 1 1 . . . . . . 2 . 1 2 Parts Fused 6 | . . . . . . . . . . . . . . . . . . . 1 1 . . 1 . . . . . 1 . 1 1 Data Loss (minor) 42 | . . . . . . . 1 1 2 . . . . . . . . . 3 2 1 3 1 2 2 . . . 7 . 2 15 Data Loss (major) 26 | . . . . . . . 1 . 2 . . . . . . . . . 3 . . 1 2 1 1 . . . 5 . 3 7 Misfires 14 | . . . . . . . 1 . 2 . . . . 1 . . . . . . 1 . . . . . . . 6 . 2 1 Alerts 4 | . . . . . . . 1 . . . . . . . . . . . . . . . . 1 . . . . 1 . . 1 Misdirections 3 | . . . . . . . . . . . . . . . . . . . . . . . . . . . . . . . . 3 Weapon Failures 37 | . . . . . . . 1 . . . . . . . . . . . . 3 . 3 1 3 . . . . 2 . 2 22 Overload Shots 6 | . . . . . . . . . . . . . . . . . . . . . . . . . . . . . 1 . 2 3 Effects 1 | . . . . . . . . . . . . . . . . . . . . . . . . . . . . . . . . 1 Heat Surge 1 | . . . . . . . . . . . . . . . . . . . . . . . . . . . . . . . . 1 Overflow Damage 1904 | . . 5 . . . 8 5 83 34 63 11 78 185 . 15 76 99 66 40 . . . 179 12 212 31 . 8 234 . 183 277 Projectiles 1417 | . . . . . . 8 5 11 . 5 11 78 50 . 15 76 44 66 40 . . . 179 12 212 31 . 8 231 . 183 152 Explosions 412 | . . 5 . . . . . . 34 58 . . 135 . . . 55 . . . . . . . . . . . . . . 125 Melee 75 | . . . . . . . . 72 . . . . . . . . . . . . . . . . . . . . 3 . . . Knockbacks 11 | . . . . . . . . . . . . . . . . . . . . . . . . . . . . . . 2 1 8 Impact . | . . . . . . . . . . . . . . . . . . . . . . . . . . . . . . . . . Kinetic 10 | . . . . . . . . . . . . . . . . . . . . . . . . . . . . . . 2 1 7 Secondary 1 | . . . . . . . . . . . . . . . . . . . . . . . . . . . . . . . . 1 Self-Inflicted Damage 1085 | . . 26 . . . . . . . 291 . 78 50 . . . 92 . . . . 183 53 . . . . . . . . 312 Shots 21 | . . 1 . . . . . . . 6 . 1 2 . . . 2 . . . . 2 3 . . . . . . . . 4 Rammed 25 | . 6 2 5 . . . . . . 1 2 3 . . . . . . . . . 2 . . . . . . 1 . 2 1 Targets Rammed 32 | . 8 3 6 . 1 1 . . . 1 2 3 . . . . . . . . . 2 . . . . . . 1 . 3 1 Kicked 1 | . . . . . 1 . . . . . . . . . . . . . . . . . . . . . . . . . . . Crushed 6 | . 2 1 1 . . 1 . . . . . . . . . . . . . . . . . . . . . . . . 1 . Highest Temperature 456 | . 6 258 . 186 76 323 249 135 240 84 279 344 366 283 298 93 . 4 232 290 222 260 181 169 . 14 . 68 385 . 306 456 Average Temperature 81 | . 4 67 . 106 33 94 33 49 35 29 84 104 169 134 118 28 . 4 46 91 88 77 33 74 . 10 . 33 91 . 111 91 Received Heat Transfer 6257 | . 222 228 . . 189 441 297 189 174 243 117 168 135 54 . 250 177 26 183 18 . 180 280 21 9 . . 57 304 26 27 2242 Effects 19 | . . . . . . . . . . . . . 6 . 3 . . . . . . . . . . . . . 4 . . 6 Shutdowns 1 | . . . . . . . . . . . . . . . . . . . . . . . . . . . . . . . . 1 Interference 16 | . . . . . . . . . . . . . 6 . 3 . . . . . . . . . . . . . 4 . . 3 Short Circuit 1 | . . . . . . . . . . . . . . . . . . . . . . . . . . . . . . . . 1 Damage (minor) 1 | . . . . . . . . . . . . . . . . . . . . . . . . . . . . . . . . 1 Siege Activations 23 | . . . . . . . . . . . . . . . . . . . . 1 . 2 3 2 2 . 1 . 3 . 3 6 Total Turns 750 | . . . . . . . . . . . . . . . . . . . . 33 . 62 48 232 85 . 9 . 42 . 30 209 Longest Duration 216 | . . . . . . . . . . . . . . . . . . . . 33 . 33 21 216 67 . 9 . 26 . 23 137 Robots Corrupted 14 | . . . . . . . . . . . . . . . . 3 . . 1 3 . . . . . . . . 3 . 4 . Combat Hostiles 14 | . . . . . . . . . . . . . . . . 3 . . 1 3 . . . . . . . . 3 . 4 . Parts Fried 31 | . . . . . . . . 2 . 1 . . . . . . . . 1 3 . . . . . . . . 14 . 10 . Impact Corruptions 3 | . . . . . . . . 2 . . . . . . . . . . . . . . . . . . . . 1 . . . Robots Melted 23 | . . . . . . . 1 2 . . 2 . 1 . 1 1 . . . . . . . . . . . 1 . 2 5 7 Combat Hostiles 20 | . . . . . . . 1 2 . . 1 . 1 . . 1 . . . . . . . . . . . 1 . 2 4 7 Parts Melted 116 | . . . . . . 7 3 1 1 1 6 6 2 . 2 5 . 1 3 . . 2 5 . 1 . . 4 4 4 28 30 Heat Transferred 43818 | 425 175 . . 117 . 2294 1439 888 851 848 2064 2572 1237 646 692 1250 625 1000 1087 . . 1184 2775 300 475 25 75 450 3941 2738 4208 9437 Parts Sabotaged 5 | . . . . . . . . . . . . . . . . . . . . . . . . . . . . . . . . 5 Parts Stolen . | . . . . . . . . . . . . . . . . . . . . . . . . . . . . . . . . . Parts Stripped . | . . . . . . . . . . . . . . . . . . . . . . . . . . . . . . . . . Power Chain Reactions 1 | . . . . . . . . . . . . . . . . . . . . . . . . . . . . . 1 . . . Alert | -11 -10 -9 -9 -9 -8 -8 -8 -8 -8 -7 -7 -6 -6 -6 -6 -6 -5 -5 -5 -5 -5 -5 -4 -4 -4 -4 -3 -3 -3 -2 -1 -1 ------- Run | Yrd Mat Mat Min Exi Min Mat Gar Mat Gar Fac Sto Fac Low Low Zio Dee Pro Fac Ext Cet Arc Hub Fac Upp Upp War Pro Res Tes Res Acc Com Peak Influence 2871 | 55 316 320 92 . 195 603 1106 790 1019 710 677 755 . . . . . 207 409 378 275 705 828 . . . . 250 412 586 1007 2871 Initial 644 | . 35 44 82 . . 25 271 538 467 534 235 286 . . . . . 144 46 223 73 25 345 . . . . 150 27 204 325 644 Average 410 | 20 138 185 34 . 84 333 731 686 756 526 469 422 . . . . . 117 162 249 201 105 383 . . . . 126 253 212 616 1379 Maximum Alert Level 5 | . 1 1 . . . 2 4 3 3 3 2 3 . . . . . 1 2 1 1 3 3 . . . . 1 2 2 3 5 Low Security (%) 34 | 100 83 57 100 . 100 32 . . . . . 9 . . . . . 91 55 29 32 94 13 . . . . 73 26 29 . . Level 1 26 | . 16 42 . . . 17 14 . . 5 32 44 . . . . . 8 44 70 67 . 43 . . . . 26 70 53 15 . Level 2 22 | . . . . . . 50 29 50 42 93 67 34 . . . . . . . . . 3 34 . . . . . 3 16 53 2 Level 3 12 | . . . . . . . 39 49 57 . . 11 . . . . . . . . . 1 8 . . . . . . . 31 46 Level 4 2 | . . . . . . . 16 . . . . . . . . . . . . . . . . . . . . . . . . 26 Level 5 . | . . . . . . . . . . . . . . . . . . . . . . . . . . . . . . . . 2 High Security 1 | . . . . . . . . . . . . . . . . . . . . . . . . . . . . . . . . 21 Max Security . | . . . . . . . . . . . . . . . . . . . . . . . . . . . . . . . . . Squads Dispatched 81 | . 5 . . . . 4 . 3 . 8 . 5 . . . . 1 2 1 . . 2 8 . . . . 3 8 1 7 23 Investigation 11 | . 2 . . . . 2 . 1 . 1 . 1 . . . . . . . . . . . . . . . 2 . 1 1 . Extermination 25 | . . . . . . . . . . 2 . 3 . . . . . 2 . . . 1 5 . . . . . 5 . 3 4 Reinforcement 18 | . 3 . . . . 1 . . . 3 . 1 . . . . . . 1 . . 1 1 . . . . 1 3 . 3 . Assault 23 | . . . . . . . . . . 1 . . . . . . 1 . . . . . 2 . . . . . . . . 19 Garrison 4 | . . . . . . 1 . 2 . 1 . . . . . . . . . . . . . . . . . . . . . . Intercept . | . . . . . . . . . . . . . . . . . . . . . . . . . . . . . . . . . Searches Triggered . | . . . . . . . . . . . . . . . . . . . . . . . . . . . . . . . . . Construction Impeded 1 | . . . . . . . . . . . . . . . . . . . . . . . . . . . . . . . 1 . Haulers Reinforced 5 | . . . . . . . . . . 1 . . . . . . . . . . . 1 1 . . . . . 1 . 1 . Active Scanning Responses . | . . . . . . . . . . . . . . . . . . . . . . . . . . . . . . . . . Cargo Convoy Interrupts . | . . . . . . . . . . . . . . . . . . . . . . . . . . . . . . . . . Stealth | -11 -10 -9 -9 -9 -8 -8 -8 -8 -8 -7 -7 -6 -6 -6 -6 -6 -5 -5 -5 -5 -5 -5 -4 -4 -4 -4 -3 -3 -3 -2 -1 -1 --------- Run | Yrd Mat Mat Min Exi Min Mat Gar Mat Gar Fac Sto Fac Low Low Zio Dee Pro Fac Ext Cet Arc Hub Fac Upp Upp War Pro Res Tes Res Acc Com Distress Signals 34 | . 2 4 . . . 3 . 1 . . 1 1 . . . . . . 2 1 1 . 3 . . 1 . 4 1 5 3 1 Communications Jammed 61 | . . . . . . . . . . . . . . . . . . . . . . 17 15 . . . . . 25 . 4 . Distress Signals 41 | . . . . . . . . . . . . . . . . . . . . . . 1 15 . . . . . 25 . . . Times Spotted 812 | . 24 30 . 8 10 39 24 12 14 19 20 41 12 4 11 25 17 13 31 9 19 18 41 3 5 31 7 4 47 32 66 176 Peak Tracking Total 23 | . 4 5 . 11 3 8 4 3 3 5 4 5 3 3 3 5 8 4 8 5 1 3 8 3 2 8 5 1 6 8 8 23 Tactical Retreats 23 | . 1 3 . 2 2 1 2 . 1 . . . . . 2 1 . . 1 . . . . . . . . . 3 . 2 2 Traps | -11 -10 -9 -9 -9 -8 -8 -8 -8 -8 -7 -7 -6 -6 -6 -6 -6 -5 -5 -5 -5 -5 -5 -4 -4 -4 -4 -3 -3 -3 -2 -1 -1 ------- Run | Yrd Mat Mat Min Exi Min Mat Gar Mat Gar Fac Sto Fac Low Low Zio Dee Pro Fac Ext Cet Arc Hub Fac Upp Upp War Pro Res Tes Res Acc Com Traps Triggered 23 | . 1 . . . . . 5 . 1 . 2 1 . . . . . 1 3 . . 1 1 . . . . 2 3 . 2 . Indirectly . | . . . . . . . . . . . . . . . . . . . . . . . . . . . . . . . . . Trap Hack Attempts . | . . . . . . . . . . . . . . . . . . . . . . . . . . . . . . . . . Triggered . | . . . . . . . . . . . . . . . . . . . . . . . . . . . . . . . . . Disarmed . | . . . . . . . . . . . . . . . . . . . . . . . . . . . . . . . . . Reprogrammed . | . . . . . . . . . . . . . . . . . . . . . . . . . . . . . . . . . Reused . | . . . . . . . . . . . . . . . . . . . . . . . . . . . . . . . . . Traps Extracted . | . . . . . . . . . . . . . . . . . . . . . . . . . . . . . . . . . Installed . | . . . . . . . . . . . . . . . . . . . . . . . . . . . . . . . . . Triggered 16 | . . . 1 . . . . . . . . . . . . . . . . . . . . . . 15 . . . . . . Machines | -11 -10 -9 -9 -9 -8 -8 -8 -8 -8 -7 -7 -6 -6 -6 -6 -6 -5 -5 -5 -5 -5 -5 -4 -4 -4 -4 -3 -3 -3 -2 -1 -1 ---------- Run | Yrd Mat Mat Min Exi Min Mat Gar Mat Gar Fac Sto Fac Low Low Zio Dee Pro Fac Ext Cet Arc Hub Fac Upp Upp War Pro Res Tes Res Acc Com Machines Disabled 86 | . 2 2 . 2 . 1 4 1 3 4 2 7 . . . 5 2 2 3 . 4 10 9 . . . . . 15 3 2 3 Max in Single Turn 7 | . 2 1 . 1 . 1 1 1 1 1 1 1 . . . 1 1 1 1 . 1 7 4 . . . . . 1 1 1 1 Garrison Access 2 | . . . . . . . . . . . . . . . . . . . . . . 1 . . . . . . . 1 . . Garrison Relay 6 | . . . . . . . 4 . 2 . . . . . . . . . . . . . . . . . . . . . . . Network Hub 2 | . . . . . . . . . . . . . . . . . . . . . . 2 . . . . . . . . . . Energy Cycler 2 | . . . . . . . . . . . . . . . . . . . 2 . . . . . . . . . . . . . Machines Repaired . | . . . . . . . . . . . . . . . . . . . . . . . . . . . . . . . . . Machines Dismantled 5 | . . . . . . . . . . . . . . . 3 . . . . . . . . . . 1 . . 1 . . . Machines Sabotaged . | . . . . . . . . . . . . . . . . . . . . . . . . . . . . . . . . . Overloaded Fab Kills . | . . . . . . . . . . . . . . . . . . . . . . . . . . . . . . . . . Hacking | -11 -10 -9 -9 -9 -8 -8 -8 -8 -8 -7 -7 -6 -6 -6 -6 -6 -5 -5 -5 -5 -5 -5 -4 -4 -4 -4 -3 -3 -3 -2 -1 -1 --------- Run | Yrd Mat Mat Min Exi Min Mat Gar Mat Gar Fac Sto Fac Low Low Zio Dee Pro Fac Ext Cet Arc Hub Fac Upp Upp War Pro Res Tes Res Acc Com Machines Accessed 52 | . 4 5 1 2 . 5 2 4 3 4 1 3 . . . . . 2 4 . . 2 3 . . 3 . . 1 . 2 1 Terminals 29 | . 4 3 . . . 2 2 . 3 1 1 2 . . . . . 1 4 . . 1 2 . . . . . . . 2 1 Fabricators 3 | . . . . . . . . . . 2 . 1 . . . . . . . . . . . . . . . . . . . . Repair Stations 8 | . . 2 . . . 1 . 1 . 1 . . . . . . . 1 . . . . 1 . . . . . 1 . . . Recycling Units . | . . . . . . . . . . . . . . . . . . . . . . . . . . . . . . . . . Scanalyzers 3 | . . . . . . 1 . 2 . . . . . . . . . . . . . . . . . . . . . . . . Garrison Access 3 | . . . . . . 1 . 1 . . . . . . . . . . . . . 1 . . . . . . . . . . Total Hacks 172 | . 12 24 1 2 . 20 7 14 5 11 2 7 . . . . . 4 5 . . 7 21 . . 14 . . 10 . 3 3 Successful 98 | . 3 16 1 2 . 16 . 7 2 8 1 3 . . . . . 3 4 . . 1 11 . . 14 . . 5 . 1 . Failed 74 | . 9 8 . . . 4 7 7 3 3 1 4 . . . . . 1 1 . . 6 10 . . . . . 5 . 2 3 Catastrophic 17 | . 2 2 . . . 2 1 . . . . 1 . . . . . . . . . 3 2 . . . . . 2 . 2 . Database Lockouts . | . . . . . . . . . . . . . . . . . . . . . . . . . . . . . . . . . Manual 41 | . 12 13 . 1 . 1 . . . 4 . 3 . . . . . 1 . . . . . . . . . . 6 . . . Terminals 86 | . 12 16 . . . 3 7 . 5 3 2 5 . . . . . 2 5 . . 3 8 . . . . . 9 . 3 3 Fabricators 6 | . . . . . . . . . . 4 . 2 . . . . . . . . . . . . . . . . . . . . Repair Stations 43 | . . 8 . . . 10 . 5 . 4 . . . . . . . 2 . . . . 13 . . . . . 1 . . . Recycling Units . | . . . . . . . . . . . . . . . . . . . . . . . . . . . . . . . . . Scanalyzers 14 | . . . . . . 6 . 8 . . . . . . . . . . . . . . . . . . . . . . . . Garrison Access 6 | . . . . . . 1 . 1 . . . . . . . . . . . . . 4 . . . . . . . . . . Terminal Hacks 41 | . 3 5 1 2 . 1 . . 2 . 1 2 . . . . . 1 4 . . . . . . 14 . . 4 . 1 . Record 5 | . . . . 1 . . . . . . . . . . . . . . . . . . . . . 4 . . . . . . Part Schematic 1 | . 1 . . . . . . . . . . . . . . . . . . . . . . . . . . . . . . . Robot Analysis 2 | . 2 . . . . . . . . . . . . . . . . . . . . . . . . . . . . . . . Prototype ID Bank 11 | . . 1 . . . . . . . . . . . . . . . . . . . . . . . 10 . . . . . . Open Door 6 | . . . 1 . . . . . . . . . . . . . . 1 4 . . . . . . . . . . . . . Branch Access Points 3 | . . 2 . . . . . . . . . 1 . . . . . . . . . . . . . . . . . . . . Emergency Access Points 1 | . . . . . . . . . . . . . . . . . . . . . . . . . . . . . 1 . . . Terminal Index 1 | . . 1 . . . . . . . . . . . . . . . . . . . . . . . . . . . . . . Alert Level 2 | . . . . . . . . . . . 1 . . . . . . . . . . . . . . . . . 1 . . . Unreport Threat 2 | . . . . . . . . . . . . . . . . . . . . . . . . . . . . . 2 . . . Locate Traps 1 | . . . . . . . . . . . . 1 . . . . . . . . . . . . . . . . . . . . Hauler Manifests 1 | . . . . . . . . . . . . . . . . . . . . . . . . . . . . . . . 1 . Zone Layout 2 | . . 1 . . . 1 . . . . . . . . . . . . . . . . . . . . . . . . . . Garrison Registry 1 | . . . . . . . . . 1 . . . . . . . . . . . . . . . . . . . . . . . Security Stations 1 | . . . . . . . . . 1 . . . . . . . . . . . . . . . . . . . . . . . Derelict Proto ID Bank 1 | . . . . 1 . . . . . . . . . . . . . . . . . . . . . . . . . . . . Fabricator Hacks 3 | . . . . . . . . . . 3 . . . . . . . . . . . . . . . . . . . . . . Load Schematic 2 | . . . . . . . . . . 2 . . . . . . . . . . . . . . . . . . . . . . Build 1 | . . . . . . . . . . 1 . . . . . . . . . . . . . . . . . . . . . . Repair Station Hacks 34 | . . 6 . . . 9 . 2 . 3 . . . . . . . 2 . . . . 11 . . . . . 1 . . . Scan Component 19 | . . 3 . . . 5 . 1 . 2 . . . . . . . 1 . . . . 6 . . . . . 1 . . . Repair 15 | . . 3 . . . 4 . 1 . 1 . . . . . . . 1 . . . . 5 . . . . . . . . . Recycling Unit Hacks . | . . . . . . . . . . . . . . . . . . . . . . . . . . . . . . . . . Scanalyzer 9 | . . . . . . 5 . 4 . . . . . . . . . . . . . . . . . . . . . . . . Insert Component 5 | . . . . . . 2 . 3 . . . . . . . . . . . . . . . . . . . . . . . . Analyze 4 | . . . . . . 3 . 1 . . . . . . . . . . . . . . . . . . . . . . . . Garrison Access Hacks 3 | . . . . . . 1 . 1 . . . . . . . . . . . . . 1 . . . . . . . . . . Unlock Access 2 | . . . . . . 1 . 1 . . . . . . . . . . . . . . . . . . . . . . . . Seal Access 1 | . . . . . . . . . . . . . . . . . . . . . . 1 . . . . . . . . . . Unauthorized Hacks 8 | . . 5 . . . . . . . 2 . 1 . . . . . . . . . . . . . . . . . . . . Terminals 5 | . . 4 . . . . . . . 1 . . . . . . . . . . . . . . . . . . . . . . Track 1 | . . 1 . . . . . . . . . . . . . . . . . . . . . . . . . . . . . . Botnet 4 | . . 3 . . . . . . . 1 . . . . . . . . . . . . . . . . . . . . . . Fabricators 2 | . . . . . . . . . . 1 . 1 . . . . . . . . . . . . . . . . . . . . Haulers 1 | . . . . . . . . . . . . 1 . . . . . . . . . . . . . . . . . . . . Recompile 1 | . . . . . . . . . . 1 . . . . . . . . . . . . . . . . . . . . . . Repair Stations 1 | . . 1 . . . . . . . . . . . . . . . . . . . . . . . . . . . . . . Mechanics 1 | . . 1 . . . . . . . . . . . . . . . . . . . . . . . . . . . . . . Recycling Units . | . . . . . . . . . . . . . . . . . . . . . . . . . . . . . . . . . Scanalyzers . | . . . . . . . . . . . . . . . . . . . . . . . . . . . . . . . . . Garrison Access . | . . . . . . . . . . . . . . . . . . . . . . . . . . . . . . . . . Data Cores Recovered 1 | . . . . . . . . . . . . . . . . . . . . . . . . . . . . . . . 1 . Used 1 | . . . . . . . . . . . . . . . . . . . . . . . . . . . . . . . 1 . Hacking Detections 36 | . 4 4 . . . 4 2 3 3 2 1 3 . . . . . . 2 . . 2 2 . . . . . 1 . 2 1 Full Trace Events 6 | . 2 . . . . 2 1 1 . . . . . . . . . . . . . . . . . . . . . . . . Feedback Events 1 | . . . . . . . 1 . . . . . . . . . . . . . . . . . . . . . . . . . Corruption 1 | . . . . . . . 1 . . . . . . . . . . . . . . . . . . . . . . . . . Feedback Blocked . | . . . . . . . . . . . . . . . . . . . . . . . . . . . . . . . . . Robot Schematics Acquired 5 | . . . . . . . . . . . . . . . 3 . . . . . . . . . . . . . 2 . . . Robots Built . | . . . . . . . . . . . . . . . . . . . . . . . . . . . . . . . . . Authchips . | . . . . . . . . . . . . . . . . . . . . . . . . . . . . . . . . . Time . | . . . . . . . . . . . . . . . . . . . . . . . . . . . . . . . . . Total Robot Build Rating . | . . . . . . . . . . . . . . . . . . . . . . . . . . . . . . . . . Part Schematics Acquired 31 | . 1 . . . . 2 . 1 . . . . . . 15 . . . . . . . . . . . . . 12 . . . Parts Built 1 | . . . . . . . . . . 1 . . . . . . . . . . . . . . . . . . . . . . Authchips 1 | . . . . . . . . . . 1 . . . . . . . . . . . . . . . . . . . . . . Time 76 | . . . . . . . . . . 76 . . . . . . . . . . . . . . . . . . . . . . Total Part Build Rating 5 | . . . . . . . . . . 5 . . . . . . . . . . . . . . . . . . . . . . Parts Repaired 15 | . . 3 . . . 4 . 1 . 1 . . . . . . . 1 . . . . 5 . . . . . . . . . Time 937 | . . 102 . . . 197 . 112 . 50 . . . . . . . 22 . . . . 454 . . . . . . . . . Parts Recycled . | . . . . . . . . . . . . . . . . . . . . . . . . . . . . . . . . . Recycled Matter . | . . . . . . . . . . . . . . . . . . . . . . . . . . . . . . . . . Retrieved Matter . | . . . . . . . . . . . . . . . . . . . . . . . . . . . . . . . . . Retrieved Components . | . . . . . . . . . . . . . . . . . . . . . . . . . . . . . . . . . Parts Scanalyzed 3 | . . . . . . 2 . 1 . . . . . . . . . . . . . . . . . . . . . . . . Part Schematics Acquired 3 | . . . . . . 2 . 1 . . . . . . . . . . . . . . . . . . . . . . . . Parts Damaged 1 | . . . . . . . . 1 . . . . . . . . . . . . . . . . . . . . . . . . Bothacking | -11 -10 -9 -9 -9 -8 -8 -8 -8 -8 -7 -7 -6 -6 -6 -6 -6 -5 -5 -5 -5 -5 -5 -4 -4 -4 -4 -3 -3 -3 -2 -1 -1 ------------ Run | Yrd Mat Mat Min Exi Min Mat Gar Mat Gar Fac Sto Fac Low Low Zio Dee Pro Fac Ext Cet Arc Hub Fac Upp Upp War Pro Res Tes Res Acc Com Used RIF Installer . | . . . . . . . . . . . . . . . . . . . . . . . . . . . . . . . . . Robots Hacked . | . . . . . . . . . . . . . . . . . . . . . . . . . . . . . . . . . Non-combat . | . . . . . . . . . . . . . . . . . . . . . . . . . . . . . . . . . Combat . | . . . . . . . . . . . . . . . . . . . . . . . . . . . . . . . . . Robot Hacks Applied . | . . . . . . . . . . . . . . . . . . . . . . . . . . . . . . . . . Relay Couplers Released 34 | . . . . . . . 20 . 8 . . . . . . . . . . . . . 3 . . . . . . 3 . . Machine Destruction 28 | . . . . . . . 17 . 8 . . . . . . . . . . . . . . . . . . . . 3 . . Programmers 6 | . . . . . . . 3 . . . . . . . . . . . . . . . 3 . . . . . . . . . Fabnet Peak Effective % . | . . . . . . . . . . . . . . . . . . . . . . . . . . . . . . . . . Robots Rewired 9 | . . . . . . . . . 2 . . . . . . . . . 7 . . . . . . . . . . . . . Allies Hacked . | . . . . . . . . . . . . . . . . . . . . . . . . . . . . . . . . . Hacks Repelled . | . . . . . . . . . . . . . . . . . . . . . . . . . . . . . . . . . Allies | -11 -10 -9 -9 -9 -8 -8 -8 -8 -8 -7 -7 -6 -6 -6 -6 -6 -5 -5 -5 -5 -5 -5 -4 -4 -4 -4 -3 -3 -3 -2 -1 -1 -------- Run | Yrd Mat Mat Min Exi Min Mat Gar Mat Gar Fac Sto Fac Low Low Zio Dee Pro Fac Ext Cet Arc Hub Fac Upp Upp War Pro Res Tes Res Acc Com Total Allies 34 | . . . 3 . . . . . 2 . 13 . . . . 1 . . 15 . . . . . . . . . . . . . Largest Group 10 | . . . 3 2 . . . . 2 . 10 9 . . . 1 . . 5 . . . . . . . . . . . . . Highest-Rated Group 244 | . . . 40 32 . . . . 62 . 202 202 . . . 119 . . 244 . . . . . . . . . . . . . Highest-Rated Ally 159 | . . . 16 16 . . . . 31 . 31 31 . . . 119 . . 159 . . . . . . . . . . . . . Total Orders 29 | . . . . . . . . . . . . . . . . . . 5 2 . . 2 5 . . . . 1 5 . 3 6 RETURN 29 | . . . . . . . . . . . . . . . . . . 5 2 . . 2 5 . . . . 1 5 . 3 6 Ally Attacks 203 | . . . . 4 . . . . 9 . 39 46 . . . 27 . . 78 . . . . . . . . . . . . . Total Damage 7273 | . . . . 50 . . . . 171 . 553 1152 . . . 2917 . . 2430 . . . . . . . . . . . . . Kills 50 | . . . . . . . . . 2 . 9 11 . . . 15 . . 13 . . . . . . . . . . . . . Allies Corrupted . | . . . . . . . . . . . . . . . . . . . . . . . . . . . . . . . . . Allies Melted 4 | . . . . . . . . . 1 . 1 . . . . . . . 1 . . . . . . . . . . 1 . . Intel | -11 -10 -9 -9 -9 -8 -8 -8 -8 -8 -7 -7 -6 -6 -6 -6 -6 -5 -5 -5 -5 -5 -5 -4 -4 -4 -4 -3 -3 -3 -2 -1 -1 ------- Run | Yrd Mat Mat Min Exi Min Mat Gar Mat Gar Fac Sto Fac Low Low Zio Dee Pro Fac Ext Cet Arc Hub Fac Upp Upp War Pro Res Tes Res Acc Com Robot Analysis Total 2 | . 2 . . . . . . . . . . . . . . . . . . . . . . . . . . . . . . . Derelict Logs Recovered 7 | . . . 2 . . . . . . . . . 2 . . . 1 . . . . . . . 2 . . . . . . . Drone Launches 29 | . . . . . . . . . . . . . . . . . . 5 2 . . 2 5 . . . . 1 5 . 3 6 Drone Recoveries 29 | . . . . . . . . . . . . . . . . . . 5 2 . . 2 5 . . . . 1 5 . 3 6 Exploration | -11 -10 -9 -9 -9 -8 -8 -8 -8 -8 -7 -7 -6 -6 -6 -6 -6 -5 -5 -5 -5 -5 -5 -4 -4 -4 -4 -3 -3 -3 -2 -1 -1 ------------- Run | Yrd Mat Mat Min Exi Min Mat Gar Mat Gar Fac Sto Fac Low Low Zio Dee Pro Fac Ext Cet Arc Hub Fac Upp Upp War Pro Res Tes Res Acc Com Turns Passed 42217 | 249 1160 1249 1035 1140 569 1257 1444 566 1402 1603 580 1399 654 597 2787 3543 693 1281 2245 571 504 1192 2040 1398 680 1779 876 754 2417 895 1584 2074 Spaces Moved 17559 | 93 537 577 616 619 320 442 737 212 725 754 209 745 440 440 1075 1468 331 595 904 184 95 499 595 382 221 702 233 303 817 485 668 536 Core 11 | 10 . . . . . . . . . . . . . . . . . . . . . . . . . . . . . . . 1 Treads 12146 | 83 537 577 616 619 26 398 737 212 725 754 209 149 . . 53 766 . . . 151 95 499 595 382 221 702 233 303 816 485 668 535 Legs 2904 | . . . . . 294 44 . . . . . . . . . 702 331 595 904 33 . . . . . . . . 1 . . . Wheels 2498 | . . . . . . . . . . . . 596 440 440 1022 . . . . . . . . . . . . . . . . . Hover . | . . . . . . . . . . . . . . . . . . . . . . . . . . . . . . . . . Flight . | . . . . . . . . . . . . . . . . . . . . . . . . . . . . . . . . . Fastest Speed 50 | 50 160 160 160 160 120 120 148 150 156 156 156 145 130 130 115 160 180 180 183 160 160 160 160 240 240 160 240 225 220 155 155 147 Average Speed 176 | 148 160 160 160 161 130 145 150 152 158 175 198 163 130 130 135 184 180 180 184 219 213 176 218 240 240 160 240 231 232 155 188 246 Slowest Speed 1650 | 160 160 160 160 240 240 225 152 156 160 240 236 236 145 130 245 245 180 183 226 240 240 240 240 240 240 240 240 240 385 155 250 1650 Overloaded Moves . | . . . . . . . . . . . . . . . . . . . . . . . . . . . . . . . . . Propulsion Burnouts . | . . . . . . . . . . . . . . . . . . . . . . . . . . . . . . . . . Robots Hopped . | . . . . . . . . . . . . . . . . . . . . . . . . . . . . . . . . . Cave-ins Triggered . | . . . . . . . . . . . . . . . . . . . . . . . . . . . . . . . . . Exploration Rate (%) 52 | 7 88 44 99 70 62 47 67 18 62 14 48 24 63 57 81 94 54 17 87 63 82 38 18 62 45 88 45 8 94 26 31 27 Regions Visited 32 Branch Regions 19 Pre-discovered Areas 5 | . . . 1 1 . . . . . . . . 2 . 1 . . . . . . . . . . . . . . . . . Known Exits Taken 19 | . . 1 . . . 1 . 1 . . . 1 1 1 . . 1 1 1 1 1 1 1 . 1 . 1 1 1 1 1 . Unknown Exits Taken 11 | 1 1 . 1 1 1 . . . . 1 1 . . . 1 1 . . . . . . . 1 . 1 . . . . . . Scrap Searched 17 | . . . 1 . . . . . . . . . 5 1 4 . 2 . . . . . . 2 1 . 1 . . . . . Spaces Dug 162 | . 2 8 . . . . 3 1 . . . 11 63 . . 6 4 10 . . 5 4 3 16 . 7 . . 5 . 14 . Terrain Destroyed 1236 | . 50 19 . . . 2 4 1 5 88 5 41 94 5 18 22 92 18 12 3 10 363 96 53 5 12 12 3 29 11 42 121 Melee 3 | . 2 . . . . . . 1 . . . . . . . . . . . . . . . . . . . . . . . . Projectile 376 | . . . . . . 2 4 . . 3 5 25 7 5 3 22 10 18 9 2 10 32 27 53 5 12 12 3 24 7 33 43 AOE 850 | . 48 19 . . . . . . 5 85 . 16 87 . 15 . 82 . 3 . . 329 69 . . . . . 5 . 9 78 Terrain Rammed . | . . . . . . . . . . . . . . . . . . . . . . . . . . . . . . . . . Walls Destroyed . | . . . . . . . . . . . . . . . . . . . . . . . . . . . . . . . . . Machines Disabled . | . . . . . . . . . . . . . . . . . . . . . . . . . . . . . . . . . Actions | -11 -10 -9 -9 -9 -8 -8 -8 -8 -8 -7 -7 -6 -6 -6 -6 -6 -5 -5 -5 -5 -5 -5 -4 -4 -4 -4 -3 -3 -3 -2 -1 -1 --------- Run | Yrd Mat Mat Min Exi Min Mat Gar Mat Gar Fac Sto Fac Low Low Zio Dee Pro Fac Ext Cet Arc Hub Fac Upp Upp War Pro Res Tes Res Acc Com Total 26629 | 141 722 774 664 705 384 851 918 385 887 946 302 871 490 453 2321 2252 402 753 1381 314 356 699 1242 826 357 1346 540 342 1279 618 946 1162 Wait 5452 | 1 88 82 31 10 10 250 92 111 42 90 41 44 12 . 1103 633 30 56 260 23 205 68 448 393 121 588 281 10 128 13 53 135 Move 17526 | 92 536 576 615 618 319 442 734 211 724 753 208 744 439 439 1074 1467 330 594 903 183 94 498 594 381 220 701 232 302 816 484 667 536 Hop . | . . . . . . . . . . . . . . . . . . . . . . . . . . . . . . . . . Pick Up 219 | 9 12 16 4 18 1 18 4 4 11 7 1 4 2 1 9 13 . 4 9 12 . 3 19 1 2 5 1 5 9 4 4 7 Fast Attach 247 | 1 2 7 1 2 3 12 2 6 5 11 6 10 3 1 19 18 2 8 6 7 6 8 10 4 . 7 3 3 43 4 9 18 Attach 114 | 6 3 2 1 5 1 8 3 . 3 7 1 1 2 . 5 3 2 2 7 3 . 2 10 . . 1 2 2 9 3 4 16 Detach 43 | . . . . . . 5 . . . . . . . . 2 . 2 1 3 . . 1 5 2 . 2 1 . 8 2 1 8 Swap 216 | . 7 7 . 3 1 3 4 4 9 10 . 4 4 . 9 13 1 21 18 9 2 14 14 . . 1 . 3 14 6 18 17 Drop 379 | . 7 10 5 14 4 9 . 8 21 12 6 14 1 2 25 39 1 7 5 19 2 7 37 11 1 16 9 6 50 7 9 15 Fire 2224 | 32 50 71 1 35 44 103 79 34 59 55 35 47 27 10 48 64 34 60 84 58 47 96 105 34 13 17 11 11 191 95 178 396 Melee 16 | . 9 . . . . . . 7 . . . . . . . . . . . . . . . . . . . . . . . . Ram 3 | . . . . . . . . . . . . 3 . . . . . . . . . . . . . . . . . . . . Kick 1 | . . . . . 1 . . . . . . . . . . . . . . . . . . . . . . . . . . . Crush 28 | . 8 3 6 . . 1 . . . 1 2 . . . . . . . . . . 2 . . . . . . 1 . 3 1 Escape Stasis 31 | . . . . . . . . . 1 . 2 . . . . . . . 15 . . . . . . . . . . . . 13 Rewire 85 | . . . . . . . . . 12 . . . . . . 2 . . 71 . . . . . . . . . . . . . Trap . | . . . . . . . . . . . . . . . . . . . . . . . . . . . . . . . . . Miscellaneous 45 | . . . . . . . . . . . . . . . 27 . . . . . . . . . . 8 . . 10 . . . Route ------- -11/Scrapyard -10/Materials (discovered 4 exits: *Mat x3 / [*Min]) -9/Materials (discovered 3 exits: *Mat / *Min x2) -9/Mines (discovered 3 exits: *Mat x2 / *Exi) -9/Exiles -8/Mines -8/Materials (discovered 2 exits: *Fac / Gar) -8/Garrison (discovered 3 exits: *Mat x3) -8/Materials -8/Garrison (discovered 4 exits: *Fac x3 / [Mat]) -7/Factory -7/Storage -6/Factory (discovered 2 exits: *Low x2) -6/Lower Caves -6/Lower Caves -6/Zion (discovered 2 exits: [*Dee] / [*Pro]) -6/Deep Caves -5/Proximity Caves -5/Factory (discovered 8 exits: *Fac x4 / Upp x2 / *Ext x2) -5/Extension (discovered 2 exits: *Fac / *Cet) -5/Cetus (discovered 2 exits: *Fac / *Arc) -5/Archives (discovered 3 exits: *Fac / *Hub x2) -5/Hub_04(d) -4/Factory (discovered 6 exits: Res x4 / *Upp x2) -4/Upper Caves -4/Upper Caves (discovered 2 exits: *Res / *War) -4/Warlord -3/Proximity Caves -3/Research (discovered 4 exits: *Res x3 / *Tes) -3/Testing -2/Research (discovered 2 exits: *Acc x2) -1/Access -1/Command History --------- Turn | Location | Event 8 | -11/Scrapyard | Discovered new exit (range 16) 250 | -11/Scrapyard | Entered Materials 314 | -10/Materials | Build established: Mutant 674 | -10/Materials | Discovered new exit (range 16) 883 | -10/Materials | Discovered new exit (range 3) 950 | -10/Materials | Derelicts attacked the area 1091 | -10/Materials | Core integrity fell below 50% 1158 | -10/Materials | Discovered new exit (range 16) 1294 | -10/Materials | Discovered new exit (range 6) 1410 | -10/Materials | Entered another Materials area 1410 | -9/Materials | Evolved 2 slots: Propulsion x2 1604 | -9/Materials | Repaired Sub. Machine Gun 1633 | -9/Materials | Discovered new exit (range 16) 1644 | -9/Materials | Identified exit to Mines 1903 | -9/Materials | Repaired Grenade Launcher 1927 | -9/Materials | Repaired Broken Sub. Machine Gun 2477 | -9/Materials | Discovered new exit (range 5) 2659 | -9/Materials | Entered Mines 2700 | -9/Mines | Met a Derelict bent on vengeance 2717 | -9/Mines | Learned 2 Materials zone layouts 2789 | -9/Mines | Assisted by bots powering up and referring to "LRC-V3" 2966 | -9/Mines | Discovered new exit (range 12) 3027 | -9/Mines | Discovered new exit (range 10) 3350 | -9/Mines | Received a Rocket Launcher from a helpful Derelict 3383 | -9/Mines | Learned location of 1 exit from Proximity Caves 3456 | -9/Mines | Met a Derelict who couldn't figure out how to use a Trap Extractor 3547 | -9/Mines | Learned location of Storage (-7) 3662 | -9/Mines | Deemed a non-threat by the Exiles lab entrance 3662 | -9/Mines | Discovered new exit (range 5) 3694 | -9/Mines | Entered Exiles 3694 | -9/Exiles | Accompanied by 2 allies 3769 | -9/Exiles | Met 8R-AWN 3795 | -9/Exiles | Met EX-HEX 3859 | -9/Exiles | Met EX-DEC 3870 | -9/Exiles | Learned location of Zion (-6) 4272 | -9/Exiles | Discovered new exit (range 12) 4436 | -9/Exiles | Met EX-BIN 4458 | -9/Exiles | Aligned with FarCom system 4460 | -9/Exiles | Given EX-Vault access code 4496 | -9/Exiles | Opened EX-Vault 4533 | -9/Exiles | Warned to stay clear of 0b10 Research branches 4561 | -9/Exiles | Exiles lab attacked by MAIN.C 4611 | -9/Exiles | Attacked by the Exiles 4762 | -9/Exiles | Destroyed 8R-AWN 4766 | -9/Exiles | Found Prototype Ballistic Gun 4772 | -9/Exiles | Found Prototype Ballistic Gun 4777 | -9/Exiles | Found Prototype Processor 4788 | -9/Exiles | Found Prototype Protection 4791 | -9/Exiles | Found Prototype Device 4834 | -9/Exiles | Entered Mines 5208 | -8/Mines | Core integrity fell below 50% 5265 | -8/Mines | Build established: Scavenger-Mutant 5386 | -8/Mines | Discovered new exit (range 15) 5403 | -8/Mines | Entered Materials 5403 | -8/Materials | Evolved 2 slots: Utility x2 5403 | -8/Materials | Identified AS-neutralizer No. 17b 5448 | -8/Materials | Garrison activated, responded to threat 5792 | -8/Materials | Destroyed 7 combat bots 5799 | -8/Materials | Build established: Mutant 5930 | -8/Materials | Discovered new exit (range 16) 5979 | -8/Materials | Identified Exp. Targeting Computer 6197 | -8/Materials | Repaired Adv. Treads 6236 | -8/Materials | Repaired Adv. Treads 6238 | -8/Materials | Identified 8R-AWN's Boregun (x2) 6267 | -8/Materials | Repaired Hcp. Storage Unit 6408 | -8/Materials | Repaired Broken Adv. Weapon Cycler? 6440 | -8/Materials | Build established: Scavenger-Mutant 6660 | -8/Materials | Identified exit to Garrison 6660 | -8/Materials | Entered Garrison 6748 | -8/Garrison | Triggered checkpoint 6790 | -8/Garrison | Garrison Relay disabled 6950 | -8/Garrison | Triggered checkpoint 6952 | -8/Garrison | Triggered checkpoint 7018 | -8/Garrison | Discovered new exit (range 13) 7201 | -8/Garrison | Core integrity fell below 50% 7278 | -8/Garrison | Triggered checkpoint 7294 | -8/Garrison | Garrison Relay disabled 7424 | -8/Garrison | Triggered checkpoint 7456 | -8/Garrison | Discovered new exit (range 12) 7480 | -8/Garrison | Triggered checkpoint 7544 | -8/Garrison | Garrison Relay disabled 7711 | -8/Garrison | Discovered new exit (range 12) 7809 | -8/Garrison | Garrison Relay disabled 7824 | -8/Garrison | Triggered checkpoint 7874 | -8/Garrison | Attempted to access garrison exit controls, blocked by remote lockdown 8000 | -8/Garrison | Attempted to access garrison exit controls, blocked by remote lockdown 8104 | -8/Garrison | Entered Materials 8212 | -8/Materials | Identified 8R-AWN's Armor/EX 8446 | -8/Materials | Repaired Broken Exp. Heat Sink 8531 | -8/Materials | Garrison activated, responded to threat 8663 | -8/Materials | Identified exit to Garrison 8670 | -8/Materials | Entered Garrison 8718 | -8/Garrison | Triggered checkpoint 8759 | -8/Garrison | Garrison Relay disabled 8834 | -8/Garrison | Triggered checkpoint 8855 | -8/Garrison | Triggered checkpoint 8919 | -8/Garrison | Discovered new exit (range 11) 9080 | -8/Garrison | Learned Factory security intel 9254 | -8/Garrison | Triggered checkpoint 9294 | -8/Garrison | Triggered checkpoint 9360 | -8/Garrison | Triggered checkpoint 9421 | -8/Garrison | Garrison Relay disabled 9459 | -8/Garrison | Discovered new exit (range 10) 9476 | -8/Garrison | Discovered new exit (range 79) 9476 | -8/Garrison | Discovered new exit (range 7) 9476 | -8/Garrison | Discovered new exit (range 38) 9476 | -8/Garrison | Discovered new exit (range 58) 9676 | -8/Garrison | Spotted B-75 Beast 9774 | -8/Garrison | Destroyed B-75 Beast 10072 | -8/Garrison | Entered Factory 10072 | -7/Factory | Evolved 2 slots: Utility x2 10166 | -7/Factory | Repaired Imp. Medium Treads? 10482 | -7/Factory | Discovered new exit (range 15) 10870 | -7/Factory | Fabricated Exp. Targeting Computer (x1) 11241 | -7/Factory | Garrison activated, responded to threat 11272 | -7/Factory | First assault squad dispatched 11675 | -7/Factory | Entered Storage 12034 | -7/Storage | Assisted by bots powering up and referring to "LRC-V3" 12126 | -7/Storage | Lost 3 allies 12219 | -7/Storage | Allied Derelicts emerged from ambush trap array 12230 | -7/Storage | Discovered new exit (range 6) 12255 | -7/Storage | Entered Factory 12255 | -6/Factory | Accompanied by 9 allies 12255 | -6/Factory | Evolved 2 slots: Power x1, Utility x1 12400 | -6/Factory | Lost 4 allies 12589 | -6/Factory | Lost 3 allies 13094 | -6/Factory | Spotted B-75 Beast 13540 | -6/Factory | Identified exit to Lower Caves 13595 | -6/Factory | Build established: Mutant 13654 | -6/Factory | Entered Lower Caves 13656 | -6/Lower Caves | Attracted the attention of an 0b10 checkpoint 13700 | -6/Lower Caves | Met a Warlord Commander 13701 | -6/Lower Caves | Learned location of Warlord (-4) 13702 | -6/Lower Caves | Warlord Commander delivered Encrypted Comm Array 13704 | -6/Lower Caves | Found Encrypted Comm Array 13853 | -6/Lower Caves | Encountered a Warlord checkpoint 13896 | -6/Lower Caves | Build established: Scavenger-Mutant 14055 | -6/Lower Caves | Spotted B-75 Beast 14068 | -6/Lower Caves | Destroyed 7 combat bots 14110 | -6/Lower Caves | Learned Factory stockpile data 14161 | -6/Lower Caves | Discovered new exit (range 8) 14306 | -6/Lower Caves | Identified exit to Lower Caves 14308 | -6/Lower Caves | Entered another Lower Caves area 14514 | -6/Lower Caves | Build established: Mutant 14628 | -6/Lower Caves | Discovered new exit (range 14) 14644 | -6/Lower Caves | Identified exit to Zion 14904 | -6/Lower Caves | Build established: Skirmisher 14905 | -6/Lower Caves | Entered Zion 14965 | -6/Zion | System corruption cleaned by Quarantine Array 15006 | -6/Zion | Found Prototype Launcher 15006 | -6/Zion | Identified Gui. Missile Launcher 15059 | -6/Zion | Discovered new exit (range 9) 15577 | -6/Zion | Found Prototype Processor 15577 | -6/Zion | Identified Exp. Signal Interpreter 15581 | -6/Zion | Found Prototype Processor 15581 | -6/Zion | Identified Exp. Armor Integrity Analyzer 15585 | -6/Zion | Found Exp. Signal Interpreter 15599 | -6/Zion | Found Exp. Targeting Computer 15603 | -6/Zion | Found Exp. Targeting Computer 15827 | -6/Zion | Given the Hacking Drone Bay 15863 | -6/Zion | Found Prototype Device 15863 | -6/Zion | Identified Mobile Refinery Mk. CCLXVII 15924 | -6/Zion | Build established: Mutant 16110 | -6/Zion | Discovered new exit (range 3) 16110 | -6/Zion | Saw the warning signs outside the Deep Caves entrance 16198 | -6/Zion | Found Prototype Device 16295 | -6/Zion | Attacked by Zionites 16453 | -6/Zion | Build established: Scavenger-Mutant 17367 | -6/Zion | 7V-RTL came to Zion's defense 17509 | -6/Zion | Destroyed 7V-RTL 17531 | -6/Zion | Found Adv. Powered Armor 17692 | -6/Zion | Entered Deep Caves 17695 | -6/Deep Caves | Met 5H-AD0 18175 | -6/Deep Caves | Z-Facility disabled 18208 | -6/Deep Caves | Attacked by Z-Imprinter 18225 | -6/Deep Caves | Allies destroyed Z-Imprinter 18278 | -6/Deep Caves | Found Prototype Device 18278 | -6/Deep Caves | Identified Zio. Metafield Generator 18294 | -6/Deep Caves | Found Prototype Protection 18294 | -6/Deep Caves | Identified Zio. Weapon Casing 18469 | -6/Deep Caves | Found Zio. Weapon Casing 18473 | -6/Deep Caves | Found Zio. Weapon Casing 18604 | -6/Deep Caves | Found Zio. Weapon Casing 19054 | -6/Deep Caves | Destroyed AG-31327 19117 | -6/Deep Caves | Triggered Deep Caves wall 19132 | -6/Deep Caves | Spotted AS-83867 19133 | -6/Deep Caves | Spotted AS-30819 19143 | -6/Deep Caves | Spotted AG-73802 19150 | -6/Deep Caves | Destroyed AS-30819 19171 | -6/Deep Caves | Destroyed AG-73802 19194 | -6/Deep Caves | Destroyed AS-83867 19208 | -6/Deep Caves | Found Mobile Assembly Unit 19276 | -6/Deep Caves | Found GOLEM Unit 19452 | -6/Deep Caves | Identified Hacking Drone Bay 19514 | -6/Deep Caves | Exposed GOLEM chamber 19517 | -6/Deep Caves | Found GOLEM Unit 19831 | -6/Deep Caves | Build established: Scavenger-Golem 20076 | -6/Deep Caves | Found GOLEM Unit 20366 | -6/Deep Caves | Build established: Scavenger-Mutant 20528 | -6/Deep Caves | Discovered new exit (range 6) 21235 | -6/Deep Caves | Entered Proximity Caves 21236 | -5/Proximity Caves | Identified exit to Factory 21729 | -5/Proximity Caves | Attracted the attention of an 0b10 outpost 21753 | -5/Proximity Caves | Core integrity fell below 50% 21787 | -5/Proximity Caves | Destroyed 11 combat bots 21856 | -5/Proximity Caves | Found Alien Artifact 21856 | -5/Proximity Caves | Identified Dimensional Node Initializer 21856 | -5/Proximity Caves | Initialized slip node 21928 | -5/Proximity Caves | Entered Factory 21928 | -5/Factory | Evolved 2 slots: Utility x2 21929 | -5/Factory | Identified exit to Upper Caves 22054 | -5/Factory | Identified exit to Factory 22578 | -5/Factory | Repaired Hvy. Rocket Launcher 22620 | -5/Factory | Identified exit to Extension 23152 | -5/Factory | Build established: Skirmisher 23209 | -5/Factory | Entered Extension 23494 | -5/Extension | Rescued A7 23767 | -5/Extension | Build established: Scavenger-Mutant 24064 | -5/Extension | Disrupted transfer network 24493 | -5/Extension | Spotted B-75 Beast 24526 | -5/Extension | Destroyed B-75 Beast 24562 | -5/Extension | Lost 3 allies 24568 | -5/Extension | Destroyed 7 combat bots 24576 | -5/Extension | Destroyed B-75 Beast 24586 | -5/Extension | Extracted ID and sensor layout for unrecognized location from A7's data core 24731 | -5/Extension | Rescued a captive Derelict 24731 | -5/Extension | Rescued a captive Derelict 24752 | -5/Extension | Rescued a captive Derelict 24863 | -5/Extension | Rescued a captive Derelict 24864 | -5/Extension | Rescued a captive Derelict 24939 | -5/Extension | Lost 5 allies 24978 | -5/Extension | Rescued a captive Derelict 24979 | -5/Extension | Rescued a captive Derelict 25245 | -5/Extension | Energy Cycler disabled 25267 | -5/Extension | Build established: Scavenger-Skirmisher 25276 | -5/Extension | Lost 3 allies 25347 | -5/Extension | Discovered exit to Factory (range 10) 25349 | -5/Extension | Discovered new exit (range 6) 25358 | -5/Extension | Identified exit to Cetus 25454 | -5/Extension | Entered Cetus 25546 | -5/Cetus | Spotted Cetus Guard 25546 | -5/Cetus | Spotted Cetus Guard 25560 | -5/Cetus | Destroyed Cetus Guard 25560 | -5/Cetus | Spotted Cetus Guard 25572 | -5/Cetus | Destroyed Cetus Guard 25573 | -5/Cetus | Destroyed Cetus Guard 25574 | -5/Cetus | Build established: Scavenger-Mutant 25588 | -5/Cetus | Spotted Cetus Guard 25594 | -5/Cetus | Destroyed Cetus Guard 25614 | -5/Cetus | System corruption reached 10% 25758 | -5/Cetus | Discovered new exit (range 16) 25802 | -5/Cetus | Spotted Cetus Guard 25802 | -5/Cetus | Spotted Cetus Guard 25816 | -5/Cetus | Destroyed Cetus Guard 25817 | -5/Cetus | Spotted Cetus Guard 25818 | -5/Cetus | Destroyed Cetus Guard 25834 | -5/Cetus | Spotted Cetus Guard 25839 | -5/Cetus | Destroyed Cetus Guard 25841 | -5/Cetus | Destroyed Cetus Guard 25865 | -5/Cetus | Discovered exit to Factory (range 15) 25877 | -5/Cetus | Met Revision 17 26023 | -5/Cetus | Identified exit to Archives 26025 | -5/Cetus | Entered Archives 26123 | -5/Archives | Discovered new exit (range 15) 26144 | -5/Archives | Discovered new exit (range 15) 26318 | -5/Archives | Discovered exit to Factory (range 14) 26527 | -5/Archives | Identified exit to Hub_04(d) 26529 | -5/Archives | Entered Hub_04(d) 27289 | -5/Hub_04(d) | Discovered exit to Factory (range 9) 27657 | -5/Hub_04(d) | Network Hub disabled 27702 | -5/Hub_04(d) | Network Hub disabled 27714 | -5/Hub_04(d) | Spotted Lightning 27721 | -5/Hub_04(d) | Spotted Lightning 27721 | -5/Hub_04(d) | Entered Factory 27721 | -4/Factory | Evolved 2 slots: Utility x2 27747 | -4/Factory | Identified exit to Research 28127 | -4/Factory | Build established: Scavenger-Golem 28653 | -4/Factory | Repaired Adv. Weapon Cycler 28789 | -4/Factory | Repaired Broken Centrium Heavy Treads 28898 | -4/Factory | Repaired Centrium Heavy Treads 28902 | -4/Factory | Destroyed 7 combat bots 28991 | -4/Factory | Repaired Rnf. Quantum Reactor 29060 | -4/Factory | Repaired Adv. Weapon Cycler 29331 | -4/Factory | Destroyed 7 combat bots 29468 | -4/Factory | Identified exit to Upper Caves 29748 | -4/Factory | First assault squad dispatched 29761 | -4/Factory | Entered Upper Caves 30241 | -4/Upper Caves | Encountered a Warlord checkpoint 31108 | -4/Upper Caves | Discovered new exit (range 5) 31159 | -4/Upper Caves | Entered another Upper Caves area 31195 | -4/Upper Caves | Discovered exit to Research (range 7) 31265 | -4/Upper Caves | Learned location of 1 exit from Research 31335 | -4/Upper Caves | Identified exit to Warlord 31836 | -4/Upper Caves | Attracted the attention of an 0b10 checkpoint 31839 | -4/Upper Caves | Entered Warlord 31893 | -4/Warlord | System corruption cleaned by Quarantine Array 32604 | -4/Warlord | Visited the Vortex Lab 32613 | -4/Warlord | Found Prototype Energy Gun 32613 | -4/Warlord | Identified Vortex Rifle 32621 | -4/Warlord | Found Prototype Energy Gun 32621 | -4/Warlord | Identified Vortex Rail 32628 | -4/Warlord | Found Vortex Rifle 32632 | -4/Warlord | Found Prototype Launcher 32685 | -4/Warlord | Met Warlord 32710 | -4/Warlord | Warlord's base attacked by MAIN.C 32727 | -4/Warlord | Found Prototype Reactor 32739 | -4/Warlord | Found Prototype Device 32739 | -4/Warlord | Identified Exp. Focal Shield 32922 | -4/Warlord | Lost 3 allies 33060 | -4/Warlord | Warlord forces counterattacked 33068 | -4/Warlord | Lost 3 allies 33148 | -4/Warlord | Lost 3 allies 33385 | -4/Warlord | Warlord base infiltrated, sounded retreat 33513 | -4/Warlord | Spotted Executioner 33536 | -4/Warlord | Discovered new exit (range 14) 33573 | -4/Warlord | Lost 3 allies 33618 | -4/Warlord | Entered Proximity Caves 33705 | -3/Proximity Caves | Spotter reported a threat 34148 | -3/Proximity Caves | Discovered exit to Research (range 16) 34494 | -3/Proximity Caves | Entered Research 34494 | -3/Research | Evolved 2 slots: Power x1, Utility x1 34495 | -3/Research | Identified exit to Research 34608 | -3/Research | Discovered new exit (range 16) 34694 | -3/Research | Revision forces began assault on 0b10 34703 | -3/Research | Found Hellfire Missile Launcher 34707 | -3/Research | Found Faulty Hellfire Missile Launcher 34767 | -3/Research | Build established: Scavenger-Mutant 34771 | -3/Research | Met up with Revision 17++ 34792 | -3/Research | Discovered exit to Research (range 11) 35194 | -3/Research | Research terminal network offline 35245 | -3/Research | Identified exit to Testing 35248 | -3/Research | Entered Testing 35281 | -3/Testing | Found Prototype Leg 35281 | -3/Testing | Identified Myomer Exoskeleton 35474 | -3/Testing | Found Quantum Capacitor 35760 | -3/Testing | Found Prototype Device 35760 | -3/Testing | Identified Exp. Thermal Shield 35823 | -3/Testing | System corruption reached 10% 35858 | -3/Testing | Found Hellfire Missile Launcher 35904 | -3/Testing | Spotted Striker 35926 | -3/Testing | Spotted Striker 36019 | -3/Testing | Scanned by Researcher 36182 | -3/Testing | Found Prototype Energy Cannon 36182 | -3/Testing | Identified Hpw. Disruptor Cannon 36676 | -3/Testing | Found Prototype Device 36676 | -3/Testing | Identified Exp. Hardlight Generator 36873 | -3/Testing | Found Prototype Device 36873 | -3/Testing | Identified 2N-1CE's Frost Array 36973 | -3/Testing | Found Prototype Energy Cannon 36973 | -3/Testing | Identified Cld. Nova Cannon 37033 | -3/Testing | Spotted PY-P25WUWIHBE 37324 | -3/Testing | Destroyed PY-P25WUWIHBE 37373 | -3/Testing | Found Corrupted Prototype Device 37373 | -3/Testing | Identified Thermal Barrier 37408 | -3/Testing | Found Prototype Ballistic Cannon 37408 | -3/Testing | Identified Perforator 37588 | -3/Testing | Found Prototype Protection 37588 | -3/Testing | Identified Lgt. Regenerative Plating 37592 | -3/Testing | Found Prototype Protection 37592 | -3/Testing | Identified Hvy. Regenerative Plating 37599 | -3/Testing | Found Prototype Protection 37599 | -3/Testing | Identified SHELL Armor 37665 | -3/Testing | Entered Research 37665 | -2/Research | Warlord forces began assault on 0b10 37665 | -2/Research | Evolved 2 slots: Propulsion x2 37690 | -2/Research | Distinguished unit "Vikings" dispatched to help 37775 | -2/Research | Research machine network offline 37907 | -2/Research | Discovered new exit (range 10) 37930 | -2/Research | Met up with Warlord 38134 | -2/Research | Identified exit to Access 38247 | -2/Research | Borebot progress halted 38257 | -2/Research | Spotted Striker 38280 | -2/Research | Spotted Striker 38297 | -2/Research | Spotted Executioner 38297 | -2/Research | Spotted Striker 38308 | -2/Research | Destroyed Striker 38344 | -2/Research | Lost 8 allies 38356 | -2/Research | Spotted B-90 Cyclops 38377 | -2/Research | Destroyed B-90 Cyclops 38398 | -2/Research | Lost 3 allies 38409 | -2/Research | Spotted Striker 38415 | -2/Research | Destroyed Striker 38447 | -2/Research | Spotted Executioner 38447 | -2/Research | Spotted Executioner 38453 | -2/Research | Destroyed Executioner 38455 | -2/Research | Destroyed Executioner 38533 | -2/Research | Discovered exit to Access (range 15) 38560 | -2/Research | Entered Access 38560 | -1/Access | Evolved 2 slots: Weapon x2 38660 | -1/Access | Spotted B-99 Colossus 38821 | -1/Access | Spotted B-99 Colossus 38832 | -1/Access | Destroyed B-99 Colossus 39149 | -1/Access | Identified exit to Command 39398 | -1/Access | Spotted B-99 Colossus 39398 | -1/Access | Spotted B-99 Colossus 39427 | -1/Access | Destroyed B-99 Colossus 39428 | -1/Access | Destroyed B-99 Colossus 39505 | -1/Access | Spotted B-99 Colossus 39510 | -1/Access | Build established: Scavenger-Gunner 39626 | -1/Access | Assembled infested ambush trap array 39706 | -1/Access | Destroyed 10 combat bots 39870 | -1/Access | System corruption reached 10% 40056 | -1/Access | Build established: Scavenger-Tank 40144 | -1/Access | Entered Command 40644 | -1/Command | First assault squad dispatched 41036 | -1/Command | Spotted B-99 Colossus 41070 | -1/Command | Found Quantum Capacitor 41107 | -1/Command | Destroyed B-99 Colossus 41139 | -1/Command | Found Prototype Ballistic Gun 41139 | -1/Command | Identified Multirail 41146 | -1/Command | Found Multirail 41391 | -1/Command | Destroyed 8 combat bots 41524 | -1/Command | Spotted B-99 Colossus 41543 | -1/Command | Destroyed B-99 Colossus 41770 | -1/Command | High security lockdown imminent 41809 | -1/Command | Destroyed 10 combat bots 41846 | -1/Command | Spotted Combat Programmer 41847 | -1/Command | Spotted M Guard 41847 | -1/Command | Spotted Combat Programmer 41850 | -1/Command | High security lockdown engaged 41869 | -1/Command | Destroyed Combat Programmer 41881 | -1/Command | Spotted M Guard 41882 | -1/Command | System corruption reached 30% 41890 | -1/Command | Destroyed Combat Programmer 41908 | -1/Command | Destroyed M Guard 41926 | -1/Command | Spotted Striker 41947 | -1/Command | Spotted Executioner 41947 | -1/Command | Spotted Executioner 41949 | -1/Command | Destroyed Executioner 41964 | -1/Command | Destroyed Executioner 41974 | -1/Command | Destroyed M Guard 41974 | -1/Command | All MAIN.C guards destroyed 42005 | -1/Command | Destroyed 17 combat bots 42009 | -1/Command | Spotted Investigator 42017 | -1/Command | Destroyed Investigator 42041 | -1/Command | Destroyed Striker 42056 | -1/Command | Identified Vortex Chain Reactor 42059 | -1/Command | Lost 5 parts (1n3u1w) 42082 | -1/Command | Destroyed 18 combat bots 42102 | -1/Command | Found Prototype Launcher 42107 | -1/Command | Found Prototype Reactor 42107 | -1/Command | Identified Zero-point Reactor 42132 | -1/Command | Found Hvy. Regenerative Plating 42138 | -1/Command | Found Cld. Nova Cannon 42143 | -1/Command | Spotted Striker 42143 | -1/Command | Spotted Investigator 42144 | -1/Command | Spotted Executioner 42144 | -1/Command | Spotted Executioner 42144 | -1/Command | Spotted Executioner 42153 | -1/Command | Destroyed Executioner 42174 | -1/Command | Core integrity fell below 50% 42178 | -1/Command | Destroyed 10 combat bots 42215 | -1/Command | Core integrity fell below 20% 42218 | -1/Command | Destroyed by P-80 Master with Gamma Rifle Last Messages --------------- 42211_ Linear Accelerator destroyed. 42212_ Centrium Heavy Treads destroyed. 42212_ K-01 Serf collects debris. 42213_ Critical hit (Burn: +37). 42213_ Zero-point Reactor destroyed. 42214_ Slug penetrates Investigator. 42214_ Penetrated by Slug. 42214_ Held in stasis. 42216_ System corrupted: Component data lost. 42216_ The unstable cave ceiling collapses. 42216_ Adv. Weapon Cycler destroyed. 42216_ K-01 Serf collects debris. 42217_ Held in stasis. 42217_ P-80 Master resets P-80 Master, system corruption cleaned. 42217_ Penetrated by Slug. 42217_ Exp. Focal Shield destroyed. 42217_ Slug penetrates Earth. 42218_ P-80 Master resets H-88 Terminator, system corruption cleaned. Map ----- +----------------------------------------------------+ | ?????????????????????????????????????????????????? | | ?????????????????????????????????????????????????? | | ?????????????????????????????????????????????????? | | ?????????????????????????????????????????????????? | | ?????????????????????????????????????????????????? | | ?????????????????????????????????????????????????? | | ?????????????????????????????????????????????????? | | ?????????????????????????????????????????????????? | | ?????????????????????????????????????????????????? | | ??????????????????????? ?????????????????????? ?? | | ?????????????????????# ?????????????????????? ?? | | ?????????????????????# ?????????????????????? ?? | | ?????????????????????? #????????????????????? ## | | ?????????????????????? #????????????????????? # | | ?????????????????????? #??????##????????????? # | | ?????????????????????? #?????# ####?????????# # | | ??????????????????????? #????# # # #####?????# # | | ??????????????????????? ##### # ##????# # | | ??????????????????????? # ## # ## # ###????#^# | | ??????????????#??????###;# # # #"#??# # | | ??????????????? ???## # #### | | ??????????????#++;###; W W ##! ## | | ??????????????# !!% i !%= %! =! % | | ??????????????# * ! !/hp p **!% [%[%[ % | | ??????????????# E[K g [%%!%! % | | ??????????????# % =g%!@ g % =!*=%%! % | | ??????????????# p=[ ki *!%![%% % | | ??????????????#% # # gc%# W ## W # !!*|=# | | ??????????????###### # i ## # !##! # | | ??????????????????# ## # % # ## # ! ## | | ??????????????????# # ## ## ###?? #??# | | ??????????????????## # % # ########?????#####??? | | ???????????????????## = # ##???????????????????? | | ???????????????????# #% ##????????????????????? | | ???????????????????###%% ##?????????????????????? | | ?????????????????????#%=[##??????????????????????? | | ?????????????????????#% #???????????????????????? | | ?????????????????????# #???????????????????????? | | ?????????????????????# #???????????????????????? | | ?????????????????????# #???????????????????????? | | ?????????????????????# #???????????????????????? | | ?????????????????????# #???????????????????????? | | ?????????????????????# #???????????????????????? | | ?????????????????????# #???????????????????????? | | ?????????????????????# #???????????????????????? | | ?????????????????????#####????????????????###+#### | | ????????????????????????????????????????### | | ????????????????????????????????????????# # | | ?????????????????????????????????????????#" | | ??????????????????????????????????????????# =* | +----------------------------------------------------+ Best States ------------- Heat Dissipation 152 Energy Generation 114 Energy Capacity 1850 Matter Stores 300 Matter Capacity 300 Sight Range 22 Robot Scan Range 16 Terrain Scan Density 10 Jamming Range 14 Power Amplification 60 Additional Mass Support 20 Armor Coverage 1800 Resistance: KI 30 Resistance: TH 50 Resistance: EX 90 Resistance: EM 15 Resistance: I 15 Resistance: S 15 Resistance: P 15 Weapon Shielding 100 Point Defense Rating 240 Weapon Cycling 25 Phase Shifting 8 Evasion (%) 55 Targeting Accuracy 24 Core Analysis 8 Armor Integrity Analysis 50 Recoil Reduction 6 Salvage Targeting 2 Defensive Hacking 14 Authchip Count 1 Item Schematics ----------------- Huge Storage Unit | -10/Materials | Hacked Exp. Targeting Computer | -8/Materials | Scanalyzed Adv. Weapon Cycler | -8/Materials | Scanalyzed Exp. Heat Sink | -8/Materials | Scanalyzed Imp. Component Analysis Suite | -6/Zion | Archive Imp. System Restoration Module | -6/Zion | Archive Imp. Remote Datajack | -6/Zion | Archive Angular Momentum Engine | -6/Zion | Archive Hyp. Coil Gun | -6/Zion | Archive Mak. Cloaking Device | -6/Zion | Archive Enh. Gauss Cannon | -6/Zion | Archive Mak. Transmission Jammer | -6/Zion | Archive Adv. Cooling System | -6/Zion | Archive Matter Compressor | -6/Zion | Archive Imp. Remote Shield | -6/Zion | Archive Adv. Focal Shield | -6/Zion | Archive Hvy. Flak Cannon | -6/Zion | Archive Lgt. Fission Core | -6/Zion | Archive Tiamat Missile Launcher | -6/Zion | Archive Hvy. Neutron Cannon | -3/Testing | Archive Centrium Medium Armor Plating | -3/Testing | Archive Gravity Flail | -3/Testing | Archive Kinetic Spear | -3/Testing | Archive Diametric Drive | -3/Testing | Archive Exp. Thermal Shield | -3/Testing | Archive Quantum Shading Machine | -3/Testing | Archive Plasma Lance | -3/Testing | Archive Hvy. Wave Gun | -3/Testing | Archive Centrium Heavy Armor Plating | -3/Testing | Archive Imp. Lightning Gun | -3/Testing | Archive Adv. Energy Well | -3/Testing | Archive Robot Schematics ------------------ Y-54 Guardian | -6/Zion | Archive L-41 Fighter | -6/Zion | Archive B-48 Gladiator | -6/Zion | Archive A-02 Transporter | -3/Testing | Archive R-10 Processor | -3/Testing | Archive Fabricated ------------ Exp. Targeting Computer | x1 | -7/Factory | Authchip Alien Tech Used ----------------- Dimensional Node Initializer Achievements -------------- None Challenges ------------ None Game ------ Seed SapperSchematicMultitool Manual? 0 Play Time 05:13:27 Cumulative 762.2 hours Start 2024.04.24 @ 19:05:18 End 2024.04.27 @ 01:52:57 Sessions 3 Manual Loads 0 Difficulty Rogue Special Mode None Game No. 492 Rogue 485 Adventurer 0 Explorer 7 Win Type - Total 54 Types 20/5/19/2/0/1/5/1/1 Lore% 88 Gallery% 95 Achievement% 83 Wizard Run 0 Options --------- Layout 2 ASCII 0 Keyboard 0 Movement Numpad Keybinds 0 Fullscreen 1 Font 24/Tamsyn Map View 50x44 Zoom Use 0% Tactical HUD 1 Map Filters NONE Filters NONE Steam 1 RUN: 85f3dca2-40b7-4545-a00b-467bb484a9ce